{"text_format":"1","workbook":"xlsx","n_sheets":9,"sheets":["Inhuurformulier","KWIV","Hulp bij invullen","Info VOG Items","Overzicht inhuurdesk","Offerteformulier","Beoordelingsformulier","Rapportage Info","Brongegevens dienst"],"not_rendered":{"charts":0,"images":3,"macros":1,"external_links":0,"defined_names":24,"comments":4,"pivot_tables":0},"unopened":[],"bounds":{"document_bytes":16777216,"sheet_cells":100000,"rows_first":2000,"rows_last":500,"rows_between":2000,"halvings":0,"cell_chars":16384,"cell_head_chars":4096},"cells_cut":0,"cells_raw":0,"read":"whole","date_system":"1900"}

{"sheet":"Inhuurformulier","index":0,"n_rows":138,"n_cols":8,"rows_kept":138,"cut":false,"hidden":false,"merged":[[101,6,101,7],[102,6,102,7],[102,4,102,5],[0,0,0,1],[8,3,10,8],[50,1,50,2],[30,7,30,8],[16,1,16,2],[17,1,17,2],[18,1,18,2],[12,0,12,1],[49,3,49,8],[49,1,49,2],[50,3,50,8],[86,0,89,0],[92,0,92,3],[81,1,84,7],[81,0,84,0],[60,2,60,7],[61,2,61,7],[76,0,79,0],[66,2,66,7],[67,2,67,7],[65,0,67,0],[68,7,69,7],[71,1,71,5],[64,2,64,7],[76,1,79,7],[72,1,72,5],[65,2,65,7],[69,1,69,5],[70,1,70,5],[52,1,52,2],[58,2,58,8],[56,1,56,7],[59,2,59,7],[0,3,0,5],[48,0,48,1],[24,1,24,7],[26,1,26,7],[28,1,28,7],[51,1,51,2],[47,0,47,8],[4,3,6,7],[12,3,12,7],[30,1,30,5],[39,2,39,7],[2,3,2,5],[62,2,62,7],[94,6,94,7],[95,6,95,7],[80,5,80,7],[126,5,128,7],[126,3,128,4],[120,3,120,4],[118,3,119,4],[117,5,117,7],[119,5,120,6],[96,6,96,7],[97,6,97,7],[98,6,98,7],[99,6,99,7],[100,6,100,7],[86,1,89,7],[121,1,122,1],[106,2,106,7],[104,2,104,7],[106,0,106,1],[104,0,104,1],[111,6,111,7],[111,3,111,5],[114,1,114,2],[115,3,115,4],[115,5,115,7],[113,3,113,7],[122,2,122,7],[118,5,118,6],[116,3,116,7],[114,3,114,8]]}
["Inhuurformulier ICT-Professional(s) Rijk",null,"Referentienummer",null,null,null,null,{"$f":"'Brongegevens dienst'!B12","v":"1.1"}]
[{"$f":"CONCATENATE(\"AV\",D1)","v":"AV"},{"$f":"'Brongegevens dienst'!A10","v":"K:\\5 Inkooptrajecten\\5.7 Inhuur\\ICT\\"}]
[]
["Soort minicompetitie*"]
["Type Aanvraag*",null,"è Toelichting  aanvraag"]
["Eventueel maximum uurtarief"]
["Spoedaanvraag*","Nee"]
[]
["Verwacht aantal gunningen (FTE) bij deze aanvraag*",1,"Bij meerdere geschikte kandidaten behoudt de dienst zich het recht voor om meerdere gunningen te doen.","Voor opdrachtnemers :\nU moet bij deze aanvraag minimaal één regel rapporteren.\nIndien u meer kandidaten mag aanbieden en u doet dit ook, \ndan moet u uiteraard ook meer regels invullen bij de rapportage.\nCorrespondentie over deze aanvraag via onderstaand \ne-mailadres."]
[]
["Max. aantal CV's (Offertes) per opdrachtnemer*",1]
[]
["Formulier volledig invullen. Velden met een * zijn verplicht in te vullen. \nZie ook werkblad \"Hulp bij invullen\".",null,null,{"$f":"'Brongegevens dienst'!B20","v":"iuc-inhuur@iuc-noord.nl"}]
[]
[null,"AANVRAGER"]
[]
["Ministerie*","OCW"]
["Deelnemer*","AWTI"]
["Afdeling/\nBedrijfsonderdeel*"]
[]
["Inhurend manager"]
[]
[null,"OPDRACHT"]
["De opdracht is geschikt voor een zelfstandige"]
["Opdrachtbeschrijving *\n- werkzaamheden of\n- prestatiedoelstelling"]
[]
["Achtergrond opdracht*\n"]
[]
["Organisatorische context en cultuur",{"$f":"IF(B18=\"\",\"\",VLOOKUP(B18,'Brongegevens dienst'!D3:G12,4))","v":"De Adviesraad voor wetenschap, technologie en innovatie (AWTI) is de onafhankelijke adviesraad van de regering en het parlement op het terrein van wetenschap, technologie en innovatie. Met zijn strategische beleidsadviezen wil de AWTI bijdragen aan het versterken van de innovatieve, wetenschappelijke en technologische kracht van mensen, bedrijven en kennisinstellingen in Nederland.  En daarmee aan een toekomstbestendige Nederlandse economie en samenleving."}]
[]
[null,"PLANNING"]
[]
["Planning","Datum offerte aanvraag*",{"$f":"NOW()","v":"2025-11-03T16:38:54.940"},{"$f":"NOW()","v":45964.693691550929}]
[]
[null,"Eindmoment stellen van vragen*",{"$f":"IF(C33>0,WORKDAY(C33,1,Feestdagen),\"\")","v":"2025-11-04"},{"$f":"D33","v":45964.693691550929}]
[null,"Eindmoment beantwoording vragen*",{"$f":"IF(C35>0,WORKDAY(C35,1,Feestdagen),\"\")","v":"2025-11-05"},{"$f":"D33","v":45964.693691550929}]
[]
[null,"Indienen offertes*",{"$f":"IF(C36>0,WORKDAY(C36,2,Feestdagen),\"\")","v":"2025-11-07"},{"$f":"D33","v":45964.693691550929}]
[]
[null,"Data selectie/verificatie gesprekken"]
[]
[null,"Streefdatum mededeling gunning*"]
[]
["Inkoper","Behandelend inkoper"]
[]
[]
[null,"SELECTIE PROFIEL UIT KWALITEITSRAAMWERK IINFORMATIEVOORZIENING (KWIV)"]
["Selecteer het gewenste KWIV Profiel voor deze functie. Voor meer informatie over het profiel ga naar https://kwiv.rijksapplicaties.nl/"]
[]
["KWIV Profiel*","1.1.3 APPLICATIEARCHITECTUUR",null,"KWIV Rijksapplicatie"]
["Functiefamilie",{"$f":"IF($B$50=\"\",\"\",VLOOKUP(B50,KWIV!B3:E66,2,FALSE))","v":"Uitvoering"},"Bijbehorende competenties","Kwaliteitsraamwerk-informatievoorziening"]
["Functiegroep",{"$f":"IF($B$50=\"\",\"\",VLOOKUP(B50,KWIV!B3:E66,3,FALSE))","v":"Expert IV"}]
["Schaalrange",{"$f":"IF($B$50=\"\",\"\",VLOOKUP(B50,KWIV!B3:E66,4,FALSE))","v":"S11-13"}]
[]
["Schaal conform salarisschaal Rijk*"]
[]
["Functienaam (roepnaam)*"]
[]
[null,"EISEN BIJ DEZE AANVRAAG","â Let op! Eisen zijn knock-out criteria,  SMART/meetbaar maken"]
[null,"Professionele Kennisgebieden*","Opleiding, Certificaten, Kennisniveau*"]
["KWIV Profiel*"]
[]
[]
[]
[null,"Kwaliteitenprofielen","Opleiding, Certificaten, Kennisniveau"]
["Overige vereiste kennisgebieden uit KWIV"]
[]
[]
[null,null,null,null,null,null,null,"Bewezen aantal jaar"]
[null,"Werk- en denkniveau (algemeen en specifiek)"]
["Ervaring"]
[]
[]
[]
[null,"KWALITIEITS WENSEN BIJ DEZE AANVRAAG"]
[]
["Competenties"]
[]
[]
[]
[]
["Aanvullende kennis en ervaring"]
[]
[]
[]
[]
["Overige kwaliteits functie wensen"]
[]
[]
[]
[]
[null,"WEGING GUNNINGSCRITERIA"]
["Vul een waarde in, indien een criterium van toepassing is. Totaal van alle ingevulde criteria moet gelijk zijn aan 100."]
[]
["Criteria*","1. Tarief",null,"Ja"]
[null,"2. Duurzaamheidsaspecten en social return doelgroep bij inzet van de Kandidaat\n",null,"Ja",null,"Ja"]
[null,"3. Relevante werkervaring van de Kandidaat",null,"Ja",null,"Ja"]
[null,"4. Kennis en vaardigheden van de Kandidaat",null,"Ja",null,"Ja"]
[null,"5. Beschikbaarheid Kandidaat",null,"Ja",null,"Ja"]
[null,"6. Mate waarin de Kandidaat de opdracht begrijpt",null,null,null,null,"Ja"]
[null,"7. Kandidaat past bij organisatie",null,null,null,null,"Ja"]
[null,"8. Plan van aanpak uitvoering\nopdracht",null,"Ja",null,"Ja"]
[null,"Totaal",{"$f":"SUM(C95:C102)","v":0},"Beoordeling \no.b.v. \nOfferte","Verificatie \nin \nselectiegesprek",null,"Beoordeling o.b.v. selectiegesprek"]
[]
["Toelichting duurzaamheid\n(verplicht indien meetellend voor gunning)"]
[]
["Toelichting beschikbaarheid\n(verplicht indien meetellend voor gunning)"]
[]
[null,"INZETGEGEVENS"]
[]
["Inzetgegevens","Gewenste startdatum*"]
[null,"Initiële einddatum*",null,"Aantal maanden initiële inhuurtermijn",null,null,{"$f":"IF(C112<>0,IF(DAY(C112)>=DAY(C111),0,-1)+(YEAR(C112)-YEAR(C111)) *12+MONTH(C112)-MONTH(C111)+1,0)","v":0}]
[]
[null,"Optie op verlenging*","Nee"]
[null,"Verlengingsinformatie gebaseerd op periode(s)",null,"of  Verlengingsinformatie gebaseerd op een project"]
[null,"Maximaal aantal verlengingen",null,"Geplande einddatum  project "]
[null,"Termijn per verlenging in maanden",null,{"$f":"IF(C114=\"Ja\",IF(OR(C116<>0,C117<>0),IF(F116<>0,\"Slechts één deel verlengingsinformatie invullen\",\"\"),\"\"),\"\")","v":""}]
[null,{"$f":"IF(C112>0,\"Verwachte uiterste einddatum inzet\",\"\")","v":""},{"$f":"IF(C112>0,IF(C114=\"Ja\",IF(C116*C117>0,IF(C112>0,EDATE(C112,C116*C117),IF(C112>0,C112,\"\")),IF(F116>0,F116,C112)),IF(C112>0,C112,\"\")),\"\")","v":""},null,null,{"$f":"IF(B5=\"Strippenkaart\",\"In te vullen bij Strippenkaart\",\"\")","v":""}]
[null,"Uren per week*",null,{"$f":"IF(B5=\"Strippenkaart\",\"Uren per week is 0 bij een strippenkaart. \nMaximaal aantal uur is dan wel verplicht.\",\"\")","v":""},null,{"$f":"IF(B5=\"Strippenkaart\",\"Beschikbaar na oproep in uren\",\"\")","v":""}]
[null,"Max. aantal uren initiële inhuurtermijn*",{"$f":"(NETWORKDAYS(C111,C112,'Brongegevens dienst'!I4:R27)*(C119/5))","v":0},null,null,{"$f":"IF(B5=\"Strippenkaart\",\"Optie maximaal aantal uren bij uit- breiden/verlengen\",\"\")","v":""}]
[]
[null,"Vergoeding dienstreizen inbegrepen in tarief\n\nToelichting","Ja"]
[]
[]
[null,"Postcode hoofdstandplaats"]
[null,"Naam hoofdstandplaats*"]
[null,"Extra standplaats(en)",null,"Toelichting extra standplaats\n(bv. frequentie over bezoek)"]
[]
[null,"Screeningsitems VOG","11, 12, 41"]
[null,"Veiligheidsonderzoek vereist*","Nee"]
[null,"VOG aanwezig voor start inzet*","Ja"]
[null,"Werknemers met soortgelijke kennis en expertise in dienst Deelnemer*","Ja"]
[null,"Vrije vervanging toegestaan*","Ja"]
[null,"Parttimers toegestaan*","Nee"]
[null,"Hybride werken bespreekbaar*","Ja"]
[null,"Onregelmatige diensten ","Nee"]
[null,"Consignatiediensten*","Nee"]
[null,"Betrokkenheid bij aanbestedingen*","Nee"]

{"sheet":"KWIV","index":1,"n_rows":66,"n_cols":5,"rows_kept":66,"cut":false,"hidden":true,"merged":[[0,1,0,4]]}
[null,"KWALITEITSRAAMWERK INFORMATIEVOORZIEING (KWIV)"]
[null,"Kwaliteitenprofiel","Functiefamilie","Functiegroep","Schaal range"]
[null,"1.1.1 INFORMATIEARCHITECTUUR","Uitvoering","Expert IV","S11-13"]
[null,"1.1.2 FUNCTIONEEL ONTWERP/STARTARCHITECTUUR","Uitvoering","Senior Medewerker IV","S8-11"]
[null,"1.1.3 APPLICATIEARCHITECTUUR","Uitvoering","Expert IV","S11-13"]
[null,"1.1.4 TECHNISCHE ARCHITECTUUR","Uitvoering","Expert IV","S11-13"]
[null,"1.1.5 SYSTEEMARCHITECTUUR","Uitvoering","Expert IV","S11-13"]
[null,"1.1.6 ENTERPRISE ARCHITECTUUR","Uitvoering","Expert IV","S11-13"]
[null,"1.2.1 INFORMATIEBELEID","Advisering","Coördinerend Specialistisch Adviseur","S13-15"]
[null,"1.2.2 INNOVATIEMANAGEMENT","Advisering","(Senior) Adviseur","S11-13"]
[null,"1.2.3 MANAGEMENT INFORMATIEVOORZIENING","Advisering","(Senior) Adviseur","S11-13"]
[null,"1.3.1 SOURCING MANAGEMENT","Uitvoering","Senior Medewerker Behandelen en Ontwikkelen ","S11-13"]
[null,"2.1.1 APPLICATIEONTWIKKELING","Uitvoering","Senior Medewerker IV","S8-11"]
[null,"2.1.2 SYSTEEMONTWIKKELING","Uitvoering","Senior Medewerker IV","S8-11"]
[null,"2.1.3 NETWERKONTWIKKELING","Uitvoering","Senior Medewerker IV","S8-11"]
[null,"2.1.4 DATA ENGINEERING","Uitvoering","Senior Medewerker IV","S8-11"]
[null,"2.2.1 TESTMANAGEMENT","Uitvoering","Senior Medewerker IV","S8-11"]
[null,"3.1.1 SYSTEEMBEHEER","Uitvoering","Senior Medewerker IV","S8-11"]
[null,"3.1.2 CHANGE MANAGEMENT","Uitvoering","Senior Medewerker IV","S8-11"]
[null,"3.1.3 FUNCTIONEEL BEHEER","Uitvoering","Senior Medewerker IV","S8-11"]
[null,"3.1.4 SERVERBEHEER","Uitvoering","Senior Medewerker IV","S8-11"]
[null,"3.1.5 NETWERKBEHEER","Uitvoering","Senior Medewerker IV","S8-11"]
[null,"3.1.6 APPLICATIEBEHEER","Uitvoering","Senior Medewerker IV","S8-11"]
[null,"3.1.7 DATABASEBEHEER","Uitvoering","Senior Medewerker IV","S8-11"]
[null,"3.1.8 RECORDBEHEER","Uitvoering","Medewerker IV","S8-9"]
[null,"3.1.9 DATA STEWARDSHIP","Uitvoering","Senior Medewerker IV","S8-11"]
[null,"3.2.1 TECHNICAL SUPPORT","Uitvoering","Senior Medewerker IV","S8-11"]
[null,"3.2.2 1e LIJNS GEBRUIKERSONDERSTEUNING","Uitvoering","Medewerker Verwerken en Behandelen ","S3-8"]
[null,"3.2.3 INCIDENT MANAGEMENT","Uitvoering","Senior Medewerker IV","S8-11"]
[null,"3.2.4 PROBLEM MANAGEMENT","Uitvoering","Senior Medewerker IV","S8-11"]
[null,"3.3.1 SERVICE LEVEL MANAGEMENT","Uitvoering","Senior Medewerker Behandelen en Ontwikkelen ","S11-13"]
[null,"3.3.2 CAPACITY MANAGEMENT","Uitvoering","Senior Medewerker IV","S8-11"]
[null,"3.3.3 CONFIGURATION MANAGEMENT","Uitvoering","Senior Medewerker IV","S8-11"]
[null,"3.3.4 RELEASE MANAGEMENT","Uitvoering","Senior Medewerker IV","S8-11"]
[null,"4.1.1 SECURITY MANAGEMENT","Uitvoering","Expert IV","S11-13"]
[null,"4.1.2 INFORMATIERISICOMANAGEMENT","Advisering","(Senior) Adviseur","S11-13"]
[null,"4.1.3 CYBERSECURITY MANAGEMENT","Uitvoering","Expert IV","S11-13"]
[null,"4.2.1 CATEGORIEMANAGEMENT IV","Uitvoering","Senior Medewerker Behandelen en Ontwikkelen ","S11-13 of S13-15"]
[null,"4.2.2 INKOOP IV","Uitvoering","Senior Medewerker Behandelen en Ontwikkelen ","S11-13"]
[null,"4.2.3 RELATIEMANAGEMENT IV","Uitvoering","Senior Medewerker Behandelen en Ontwikkelen ","S11-13"]
[null,"4.2.4 CONTRACT-/LEVERANCIERMANAGEMENT IV","Uitvoering","Expert IV","S11-13"]
[null,"4.3.1 INFORMATIEANALYSE","Uitvoering","Senior Medewerker Behandelen en Ontwikkelen ","S11-13"]
[null,"4.3.2 BUSINESS ANALYSE","Uitvoering","Senior Medewerker Behandelen en Ontwikkelen ","S11-13"]
[null,"4.3.3 BUSINESS INTELLIGENCE/DATA ANALYSE","Uitvoering","Expert IV","S11-13"]
[null,"4.3.4 DATA SCIENCE","Uitvoering","Senior Medewerker Behandelen en Ontwikkelen ","S11-13"]
[null,"4.4.1 INFORMATIECOACHING","Uitvoering","Medewerker Behandelen en Ontwikkelen ","S9-10 of S8-11"]
[null,"4.4.2 LEER- EN ONTWIKKELMANAGEMENT","Uitvoering","Senior Medewerker Behandelen en Ontwikkelen ","S11-13"]
[null,"4.4.3 (AGILE) COACHING","Uitvoering","Senior Medewerker Behandelen en Ontwikkelen ","S11-13"]
[null,"4.5.1 PRODUCT OWNER","Uitvoering","Expert IV","S11-13"]
[null,"4.5.2 PRODUCT MANAGER","Uitvoering","Expert IV","S11-13"]
[null,"4.5.3 BUSINESS OWNER (GEDELEGEERD)","Uitvoering","Senior Medewerker Behandelen en Ontwikkelen ","S11-13 of S13-15"]
[null,"4.6.1 SERVICE DESIGN","Uitvoering","Expert IV","S11-13"]
[null,"4.6.2 USER INTERFACE DESIGN","Uitvoering","Expert IV","S11-13"]
[null,"4.6.3 UX RESEARCH","Uitvoering","Expert IV","S11-13"]
[null,"5.1.1 PROJECTLEIDERSCHAP IV","Project-/Programmamanagement","Projectleider","S9-11 of S12-15"]
[null,"5.1.2 PROJECTMANAGEMENT IV","Project-/Programmamanagement","Project-/Programmamanager","S12-15"]
[null,"5.1.3 PROGRAMMAMANAGEMENT IV","Project-/Programmamanagement","Project-/Programmamanager","S12-15"]
[null,"5.1.4 PORTFOLIOMANAGEMENT IV","Uitvoering","Senior Medewerker Behandelen en Ontwikkelen ","S11-13"]
[null,"5.2.1 SCRUM MASTER","Uitvoering","Expert IV","S11-13"]
[null,"5.2.2 RELEASE TRAIN ENGINEER","Uitvoering","Expert IV","S11-13"]
[null,"5.3.1 INFORMATIEMANAGEMENT","Uitvoering","Senior Medewerker Behandelen en Ontwikkelen ","S11-13"]
[null,"5.3.2 DATA-/GEGEVENSMANAGEMENT","Uitvoering","Senior Medewerker Behandelen en Ontwikkelen ","S11-13"]
[null,"5.3.3 RECORDMANAGEMENT","Uitvoering","Senior Medewerker IV","S8-11"]
[null,"5.3.4 METADATA-/GEGEVENSMANAGEMENT","Uitvoering","Medewerker Behandelen en Ontwikkelen ","S9-10"]
[null,"5.3.5 KWALITEITSMANAGEMENT IV","Uitvoering","Expert IV","S11-13"]
[null,"5.4.1 IT-CONTROL","Uitvoering","Senior Medewerker Behandelen en Ontwikkelen ","S11-13"]

{"sheet":"Hulp bij invullen","index":2,"n_rows":26,"n_cols":8,"rows_kept":26,"cut":false,"hidden":false,"merged":[[12,2,19,5],[4,7,10,8],[21,2,23,5],[25,2,26,5],[0,0,0,1],[4,2,5,5],[7,2,10,5]]}
["Aanvragen juist in de markt plaatsen"]
[]
["1. Enkelvoudige reguliere aanvraag  zonder extra opties?",null,"Ga naar stap 3",null,null,null,null,"Niet doen bij het invullen van aanvragen ICT Inhuur!!"]
[]
["2. Meerdere FTE's nodig?",null,"In negen van de tien gevallen gewoon als reguliere aanvraag zonder extra opties. \n\nLet wel op dat de eisen in proportie blijven (werk en denkniveau i.p.v. diploma, aantal jaren ervaring van iemand die iets dedicated heeft gedaan kan lager. Vermijdt ook ervaringseisen gerelateerd aan een specifieke klant). ",null,null,null,null,"Teveel Fte’s op 1 aanvraag. Geef opdrachnemers de ruimte meer cv’s in te dienen en voeg de regel toe: ‘in geval meerdere kandidaten geschikt worden bevonden, behoudt de dienst zich het recht voor meerdere gunningen te doen.’\n\nOp de aanvraag aangeven dat het om een aangewezen / gerede kandidaat of warme stoel gaat. De ADR verklaart dit onrechtmatig!\n\nVerambtelijken zonder de nog lopende NOK te respecteren!\n\nWensen als eis opnemen! Bijv. Bij voorkeur heeft de kandidaat…. Dit suggereert een wens en moet dan ook als wens worden genoteerd.\n\nTelefonisch toelichting geven aan een opdrachtnemer zonder dit ook te delen met de andere opdrachtnemers."]
[]
[]
[null,null,"Voeg eventueel de volgende regel toe bij de aanvraag:\n \nIn geval meerdere kandidaten geschikt worden bevonden, behoudt de dienst zich het recht voor meerdere gunningen te doen.\n\nAfhankelijk van de hoeveelheid Fte’s, kan dan eventueel nog op de aanvraag worden meegegeven dat er bijv. 3 cv’s per opdrachtnemer mogen worden ingediend. Opdrachtnemers worden dan qua aanbiedingsbetrouwbaarheid niet benadeeld (KPI ziet op het indienen van minimaal 1 cv) en hebben de mogelijkheid door het indienen van meer cv’s ook met het tarief meer ruimte te pakken (een dure kandidaat kan direct worden gecompenseerd met een iets goedkopere kandidaat).\n\nVermijdt onnodige clustering van aanvragen, maar zet ze zoveel mogelijk als aparte aanvragen uit, waar mogelijk ook verspreid in de tijd (met vooraankondiging van gelijkwaardige aanvragen). Breid de reguliere inschrijvingstijd uit, als dat kan."]
[]
[]
[]
[]
["3. Schaars profiel en mogelijk lastig in te vullen (zie ook 5)?",null,"Optie 1: zet de aanvraag uit als regulier met een max. tarief (geen aanbiedingsplicht, maar ook zekerheid dat afhankelijkheid/schaarste niet leidt tot voor klant onacceptabel tarief) \n\nOptie 2: zet de aanvraag uit tegen een hogere salarisschaal Rijk \n\nOptie 3: maak de aanvraag vrijblijvend (geen aanbiedingsplicht, tarief afhankelijk van actuele schaarste en mate van concurrentie)\n\nOptie 4: zet de aanvraag uit als regulier, maar geef de opdrachtnemers langer de kans om te zoeken (schuif de datum ‘indienen offerte’ verder in de tijd.)\n\nOptie 5: doe een vooraankondiging dat de aanvragen er eerdaags (bijv. over twee weken) aankomen met een ruwe indicatie van de profielen, niveau, tarief/schaal\n\nOptie 6: zet de aanvraag uit en beleg een conference call waarin de opdrachtnemers, de inhurend manager en een inkoopvertegenwoordiger aanwezig zijn om in 1 x keer binnen korte tijd alle vragen helder te krijgen en te beantwoorden.\n\nOptie 7: beleg op voorhand een opdrtachtnemersmeeting waarin de manager de aanvraag (en het project) kan toelichten en breng daarna pas de aanvraag in de markt. \n\nOptie 8: voor schaarse profielen waaraan een constante behoefte is: zet een aanvraag proactief uit met een langere inschrijvingstijd (bijv. 1 maand). Herhaal deze zo vaak als nodig. Worden geschikte kandidaten gevonden, kan achteraf alsnog een vrijblijvende aanvraag worden uitgezet. Er geldt geen aanbiedingsplicht.\n\nOptie 9: vermijdt in elk geval onnodige clustering van aanvragen met schaars profiel en wees zeer terughoudend bij het formuleren van eisen aan de kandidaat. Overweeg om eisen om te zetten naar kwaliteits wensen."]
[]
[]
[]
[]
[]
[]
[]
[]
["4. Veel profielen in een kort tijdsbestek?",null,"Optie 1: beleg op voorhand een opdrachtnemersmeeting waarin de manager de aanvragen (en het project) kan toelichten en breng daarna pas de aanvragen in de markt.\n\nOptie 2: zet de aanvragen uit als regulier, maar geef de opdrachtnemers langer de kans om te zoeken (schuif de datum ‘indienen offerte’ verder in de tijd.)\n\nOptie 3: doe een vooraankondiging dat de aanvragen er eerdaags (bijv. over twee weken) aankomen met een ruwe indicatie van de profielen, niveau, tarief/schaal"]
[]
[]
[]
["5. Schaarste moeilijk in te schatten ?",null,"optie 1: neem contact op met de decentrale contractmanager bij je ministerie of de centrale contractmanager van de categorie. Deze heeft misschien ook informatie over soortgelijke profielen bij andere opdrachtgevers.\n\noptie 2: vraag informatie op bij de opdrachtnemers en leg zo mogelijk een indicatief profiel uit met het verzoek daarop te reageren (kandidaat aanbieden wel/niet mogelijk binnen toegestane afwijking van overheidstarieven, welke eisen in de aanvraag worden als knelpunt ervaren). "]

{"sheet":"Info VOG Items","index":3,"n_rows":43,"n_cols":2,"rows_kept":43,"cut":false,"hidden":true,"merged":[]}
[null,"VOG Overzicht Items"]
[]
[null,"Specifiek screeningsprofiel"]
["01","Politieke ambtsdragers"]
["06","Visum en emigratie"]
["25","(Buitengewoon) opsporingsambtenaar"]
[40,"Vakantiegezinnen en adoptie"]
["45","Gezondheidszorg en welzijn van mens en dier"]
["50","Exploitatievergunning; Dit screeningsprofiel is van toepassing bij het aanvragen van een exploitatievergunning voor een horecabedrijf bij de gemeente"]
["55","Juridische dienstverlening"]
["60","Onderwijs Dit screeningsprofiel is van toepassing op al het personeel dat werkzaam is bij een educatieve instelling"]
["65","Taxibranche; chauffeurskaart Dit screeningsprofiel kan alleen worden gebruikt als Kiwa Register B.V. de organisatie is die de VOG verlangt"]
["70","Taxibranche; ondernemersvergunning Dit screeningsprofiel kan alleen worden gebruikt als Kiwa Register B.V. de organisatie is die de VOG verlangt"]
["75","(Gezins)voogd bij voogdijinstellingen, reclasseringswerker, raadsonderzoeker en maatschappelijk werker"]
["80","Beëdigd tolken/vertalers Dit screeningsprofiel kan alleen worden gebruikt als de Raad voor Rechtsbijstand de organisatie is die de VOG verlangt"]
["85","Lidmaatschap schietvereniging"]
["95","Financiële dienstverlening"]
[null,"Algemeen screeningsprofiel"]
["11","Bevoegdheid hebben tot het raadplegen en/of bewerken van systemen"]
["12","Met gevoelige/vertrouwelijke informatie omgaan"]
["13","Kennis dragen van veiligheidssystemen, controlemechanismen en verificatieprocessen"]
[null,"Geld"]
["21","Met contante en/of girale gelden en/of (digitale) waardepapieren omgaan"]
["22","Budgetbevoegdheid hebben"]
[null,"Goederen"]
["36","Het bewaken van productieprocessen"]
["37","Het beschikken over goederen"]
["38","Het voorhanden hebben van stoffen, objecten en voorwerpen e.d., die bij oneigenlijk of onjuist gebruik een risico vormen voor mens (en dier)"]
[null,"Diensten"]
["41","Het verlenen van diensten (advies, beveiliging, schoonmaak, catering, onderhoud, etc)"]
["43","Het verlenen van diensten in de persoonlijke leefomgeving"]
[null,"Zakelijke transacties"]
["53","Beslissen over offertes (het voeren van onderhandelingen en het afsluiten van contracten) en het doen van aanbestedingen"]
[null,"Proces"]
["61","Het onderhouden/ombouwen/bedienen van (productie)machines en/of apparaten, voertuigen en/of luchtvaartuigen"]
["62","(Rijdend) vervoer waarbij goederen, producten, post en pakketten worden getransporteerd en/of bezorgd, anders dan het intern transport binnen een bedrijf"]
["63","(Rijdend) vervoer waarbij personen worden vervoerd"]
[null,"Aansturen organisatie"]
["71","Personen die vanuit hun functie mensen en/of een organisatie (of een deel daarvan) aansturen"]
[null,"Personen"]
["84","Belast zijn met de zorg voor minderjarigen"]
["85","Belast zijn met de zorg voor (hulpbehoevende) personen, zoals ouderen en gehandicapten"]
["86","Kinderopvang (alleen aanvinken in combinatie met andere functieaspecten)"]

{"sheet":"Overzicht inhuurdesk","index":4,"n_rows":51,"n_cols":36,"rows_kept":51,"cut":false,"hidden":true,"merged":[[11,34,11,35],[39,19,39,24],[40,19,40,24],[41,19,41,24],[42,19,42,24],[34,19,34,24],[35,19,35,24],[36,19,36,24],[37,19,37,24],[38,19,38,24],[29,19,29,24],[30,19,30,24],[31,19,31,24],[21,19,21,24],[11,30,11,31],[22,19,22,24],[6,15,6,19],[7,15,7,19],[6,6,6,8],[7,9,7,12],[19,19,19,24],[13,19,13,24],[17,19,17,24],[6,9,6,12],[8,9,8,12],[9,6,9,12],[9,16,9,17],[12,19,12,24],[10,19,10,24],[11,19,11,24],[9,13,9,15],[8,15,8,19],[0,6,0,8],[4,9,4,12],[0,9,0,12],[5,15,5,19],[4,6,4,8],[2,15,2,20],[5,9,5,12],[2,0,2,12],[0,0,0,2],[4,2,4,4],[5,0,5,1],[0,15,0,18],[6,0,6,1],[5,2,5,4],[6,2,6,4],[4,0,4,1],[1,0,1,2],[45,19,45,24],[50,19,50,24],[24,19,24,24],[25,19,25,24],[26,19,26,24],[27,19,27,24],[28,19,28,24],[32,19,32,24],[33,19,33,24],[44,19,44,24],[43,19,43,24],[46,19,46,24],[47,19,47,24],[48,19,48,24],[49,19,49,24],[27,34,27,35],[23,19,23,24],[14,19,14,24],[15,19,15,24],[16,19,16,24],[18,19,18,24],[20,19,20,24]]}
["Overzicht aanbiedingen",null,null,null,null,null,"Referentienummer ",null,null,{"$f":"Inhuurformulier!D1","v":0},null,null,null,null,null,"Status Aanvraag",null,null,null,"Open",null,null,null,null,{"$f":"'Brongegevens dienst'!B12","v":"1.1"}]
[{"$f":"Inhuurformulier!B57","v":0}]
["AANVRAAGGEGEVENS",null,null,null,null,null,null,null,null,null,null,null,null,null,null,"WAARDEN REKENREGELS",null,null,null,null,null,null,null,"AANMAKEN DOCUMENTEN"]
[null,null,null,null,null,{"$f":"Inhuurformulier!C111","v":0}]
["Ministerie",null,{"$f":"Inhuurformulier!B17","v":"OCW"},null,null,{"$f":"Inhuurformulier!C112","v":0},"Inhurend manager",null,null,{"$f":"Inhuurformulier!B21","v":0},null,null,null,null,null,"Criterium tarief",null,null,null,null,{"$f":"Inhuurformulier!C95","v":0},null,null,null,null,null,null,"Stamlocatie ",{"$f":"'Brongegevens dienst'!A10","v":"K:\\5 Inkooptrajecten\\5.7 Inhuur\\ICT\\"}]
["Deelnemer",null,{"$f":"Inhuurformulier!B18","v":"AWTI"},null,null,{"$f":"Inhuurformulier!C119","v":0},null,null,null,null,null,null,null,null,null,"Aantal maanden initiële inhuur",null,null,null,null,{"$f":"Inhuurformulier!G112","v":0},null,null,null,null,null,null,"Locatie",{"$f":"CONCATENATE('Brongegevens dienst'!A10,\"AV\",J1,\"\\\")","v":"K:\\5 Inkooptrajecten\\5.7 Inhuur\\ICT\\AV0\\"}]
["Dienstonderdeel",null,{"$f":"Inhuurformulier!B19","v":0},null,null,{"$f":"Inhuurformulier!B5","v":0},null,null,null,null,null,null,null,null,null,"Aanvraagdatum",null,null,null,null,{"$f":"Inhuurformulier!C33","v":"2025-11-03T16:38:54.940"},null,null,null,null,null,null,"Naam AV-document",{"$f":"CONCATENATE(\"AV\",J1)","v":"AV0"}]
[null,null,{"$f":"Inhuurformulier!B57","v":0},{"$f":"Inhuurformulier!B50","v":"1.1.3 APPLICATIEARCHITECTUUR"},{"$f":"Inhuurformulier!B3","v":0},{"$f":"\"Nee\"","v":"Nee"},null,null,null,null,null,null,null,null,null,"Startdatum bij gunning",null,null,null,null,{"$f":"Inhuurformulier!C111","v":"00:00:00"},null,null,null,null,null,null,"Naam OF-document",{"$f":"CONCATENATE(\"OF\",J1)","v":"OF0"}]
[null,null,{"$f":"Inhuurformulier!B55","v":0},{"$f":"IF(Inhuurformulier!B6>0,\"Ja\",\"Nee\")","v":"Nee"},{"$f":"Inhuurformulier!D3","v":0},{"$f":"Inhuurformulier!B9","v":1},null,null,null,null,null,null,null,null,null,"Aantal gunningen bij deze aanvraag",null,null,null,null,1,null,null,null,null,null,null,"Naam RI-document",{"$f":"CONCATENATE(\"RI\",J1)","v":"RI0"}]
[null,null,{"$f":"Inhuurformulier!B52","v":"Expert IV"},{"$f":"Inhuurformulier!B9","v":1},{"$f":"Inhuurformulier!C44","v":0},null,"Eisen",null,null,null,null,null,null,"Initiële termijn",null,null,"Scorebepaling",null,null,null,null,null,null,null,null,null,null,"Naam BO-document",{"$f":"CONCATENATE(\"BO\",J1)","v":"BO0"}]
[null,"Opdrachtnemer","Contactpersoon","Kandidaat","Doorleen kandidaat","Status kandidaat","Opdracht-\nnemer","Behoefte-\nsteller","Voorwaar-\ndelijke\ninschrijving","Strijdig-\nheden in\ntoelichting","> 1x\naangeboden\n¢uitsluiting",null,"Eisen akkoord","Tarief aanbieding",{"$f":"SMALL(O12:O51,1)","v":{"$error":"#NUM!"}},"Score","Score beoordelaar","Totaal score","Rang",null,null,null,null,null,null,null,null,"Initieel tarief"]
[1,null,null,null,null,null,null,null,null,null,null,{"$f":"CONCATENATE(G12,H12,I12,J12,K12)","v":""},{"$f":"IF(L12=\"JaJaNeeNeeNee\",\"Ja\",IF(L12=\"\",\"\",\"Nee\"))","v":""},null,{"$f":"IF(N12>0,IF(M12=\"Ja\",N12,\"999\"))","v":false},{"$f":"IF(M12=\"Ja\",IF(N12>0,AB12*$U$5,0),0)","v":0},null,{"$f":"IF(M12=\"Ja\",P12+Q12,0)","v":0},{"$f":"IF($T$1=\"Gunnen\",IF(R12>0,RANK(R12,$R$12:$R$51,0),IF(M12=\"Nee\",\"Exit\",\"\")),\"\")","v":""},null,null,null,null,null,null,null,null,{"$f":"IF(N12>0,IF(N12<999,$O$11/N12,))","v":false},null,null,"E-mailgegevens afwijsreden",null,{"$f":"IF(B12<>\"\",VLOOKUP(B12,'Brongegevens dienst'!$S$3:$Y$14,7,),\"\")","v":""},{"$f":"TEXT(R12,\"###,00\")","v":",00"},"E-mailgegevens gunning"]
[2,null,null,null,null,null,null,null,null,null,null,{"$f":"CONCATENATE(G13,H13,I13,J13,K13)","v":""},{"$f":"IF(L13=\"JaJaNeeNeeNee\",\"Ja\",IF(L13=\"\",\"\",\"Nee\"))","v":""},null,{"$f":"IF(N13>0,IF(M13=\"Ja\",N13,\"999\"))","v":false},0,null,{"$f":"IF(M13=\"Ja\",P13+Q13,0)","v":0},"",null,null,null,null,null,null,null,null,false,null,null,null,null,{"$f":"IF(B13<>\"\",VLOOKUP(B13,'Brongegevens dienst'!$S$3:$Y$14,7,),\"\")","v":""},{"$f":"TEXT(R13,\"###,00\")","v":",00"}]
[3,null,null,null,null,null,null,null,null,null,null,"","",null,false,0,null,0,"",null,null,null,null,null,null,null,null,false,null,null,null,null,{"$f":"IF(B14<>\"\",VLOOKUP(B14,'Brongegevens dienst'!$S$3:$Y$14,7,),\"\")","v":""},",00"]
[4,null,null,null,null,null,null,null,null,null,null,"","",null,false,0,null,0,"",null,null,null,null,null,null,null,null,false,null,null,"Van",{"$f":"'Brongegevens dienst'!B20","v":"iuc-inhuur@iuc-noord.nl"},{"$f":"IF(B15<>\"\",VLOOKUP(B15,'Brongegevens dienst'!$S$3:$Y$14,7,),\"\")","v":""},",00","Van",{"$f":"'Brongegevens dienst'!B20","v":"iuc-inhuur@iuc-noord.nl"}]
[5,null,null,null,null,null,null,null,null,null,null,"","",null,false,0,null,0,"",null,null,null,null,null,null,null,null,false,null,null,"CC",{"$f":"'Brongegevens dienst'!B20","v":"iuc-inhuur@iuc-noord.nl"},{"$f":"IF(B16<>\"\",VLOOKUP(B16,'Brongegevens dienst'!$S$3:$Y$14,7,),\"\")","v":""},",00","CC",{"$f":"'Brongegevens dienst'!B20","v":"iuc-inhuur@iuc-noord.nl"}]
[6,null,null,null,null,null,null,null,null,null,null,"","",null,false,0,null,0,"",null,null,null,null,null,null,null,null,false,null,null,"Onderwerp","Afwijzing kandidaat ICT functie aanvraag: ",{"$f":"IF(B17<>\"\",VLOOKUP(B17,'Brongegevens dienst'!$S$3:$Y$14,7,),\"\")","v":""},",00","Onderwerp","Gunning kandidaat ICT functie aanvraag: "]
[7,null,null,null,null,null,null,null,null,null,null,"","",null,false,0,null,0,"",null,null,null,null,null,null,null,null,false,null,null,"Aanhef","Beste ",{"$f":"IF(B18<>\"\",VLOOKUP(B18,'Brongegevens dienst'!$S$3:$Y$14,7,),\"\")","v":""},",00","Aanhef","Beste "]
[8,null,null,null,null,null,null,null,null,null,null,"","",null,false,0,null,0,"",null,null,null,null,null,null,null,null,false,null,null,"Inleiding","Dank u voor uw aanbieding op de in het onderwerp genoemde aanvraag. Hierbij kan ik melden dat uw kandidaat niet als economisch meest voordelige inschrijving wordt aangemerkt.\n\nHieronder vindt u de naam van de afgewezen kandidaat, de rang, en de motivatie voor de afwijzing.\n ",{"$f":"IF(B19<>\"\",VLOOKUP(B19,'Brongegevens dienst'!$S$3:$Y$14,7,),\"\")","v":""},",00","Inleiding","Dank u voor uw aanbieding op de in het onderwerp genoemde aanvraag. \n\nGefeliciteerd! Hierbij deel ik u mede dat de opdracht met de hieronder genoemde kandidaat aan u is gegund.\n\nUw kandidaat heeft een score van  "]
[9,null,null,null,null,null,null,null,null,null,null,"","",null,false,0,null,0,"",null,null,null,null,null,null,null,null,false,null,null,"Kandidaat","Kandidaatnaam:      ",{"$f":"IF(B20<>\"\",VLOOKUP(B20,'Brongegevens dienst'!$S$3:$Y$14,7,),\"\")","v":""},",00","Kandidaat","Kandidaatnaam     :  "]
[10,null,null,null,null,null,null,null,null,null,null,"","",null,false,0,null,0,"",null,null,null,null,null,null,null,null,false,null,null,"Rang","Rang:                     ",{"$f":"IF(B21<>\"\",VLOOKUP(B21,'Brongegevens dienst'!$S$3:$Y$14,7,),\"\")","v":""},",00","Startdatum","Startdatum           : "]
[11,null,null,null,null,null,null,null,null,null,null,"","",null,false,0,null,0,"",null,null,null,null,null,null,null,null,false,null,null,"Reden","Afwijsreden:           ",{"$f":"IF(B22<>\"\",VLOOKUP(B22,'Brongegevens dienst'!$S$3:$Y$14,7,),\"\")","v":""},",00","Startdatum",{"$f":"U8","v":"00:00:00"}]
[12,null,null,null,null,null,null,null,null,null,null,"","",null,false,0,null,0,"",null,null,null,null,null,null,null,null,false,null,null,"Gegunde partij","De gegunde opdrachtnemer(s) voor deze aanvraag is/zijn: ",{"$f":"IF(B23<>\"\",VLOOKUP(B23,'Brongegevens dienst'!$S$3:$Y$14,7,),\"\")","v":""},",00","Reden :","Motivatie gunning  :  "]
[13,null,null,null,null,null,null,null,null,null,null,"","",null,false,0,null,0,"",null,null,null,null,null,null,null,null,false,null,null,"Afsluiting","Wij gaan er van uit u hiermee voldoende te hebben geïnformeerd.\n \nMet vriendelijke groet,\n\n",{"$f":"IF(B24<>\"\",VLOOKUP(B24,'Brongegevens dienst'!$S$3:$Y$14,7,),\"\")","v":""},",00","Afsluiting","De overeenkomst ziet u z.s.m. tegemoet.\n\nWij gaan er vanuit u hiermee voldoende te hebben geïnformeerd.\n \nMet vriendelijke groet, \n\n"]
[14,null,null,null,null,null,null,null,null,null,null,"","",null,false,0,null,0,"",null,null,null,null,null,null,null,null,false,null,"Rang 1",{"$f":"IF(J1<>\"\",INDEX(B12:B51,MATCH(1,S12:S51,0)),\"\")","v":{"$error":"#N/A"}},{"$f":"IF(J1<>\"\",INDEX(R12:R51,MATCH(1,S12:S51,0)),\"\")","v":{"$error":"#N/A"}},{"$f":"IF(B25<>\"\",VLOOKUP(B25,'Brongegevens dienst'!$S$3:$Y$14,7,),\"\")","v":""},",00","Inkoper tekst","Inkoper aanvraag  : "]
[15,null,null,null,null,null,null,null,null,null,null,"","",null,false,0,null,0,"",null,null,null,null,null,null,null,null,false,null,null,null,{"$f":"TEXT(AF25,\"###,00\")","v":{"$error":"#N/A"}},{"$f":"IF(B26<>\"\",VLOOKUP(B26,'Brongegevens dienst'!$S$3:$Y$14,7,),\"\")","v":""},",00","Inkoper",{"$f":"Inhuurformulier!C44","v":0}]
[16,null,null,null,null,null,null,null,null,null,null,"","",null,false,0,null,0,"",null,null,null,null,null,null,null,null,false,null,null,"Inleiding bij geen gunning","Dank u voor uw aanbieding op de in het onderwerp genoemde aanvraag. Op basis van de uitkomsten van de beoordeling is de opdracht niet gegund. Ik deel u hierbij mede dat uw bedrijf niet voor gunning in aanmerking komt.\n\nHieronder vindt u de naam van de afgewezen kandidaat, het aantal behaalde punten en de motivatie voor de afwijzing.",{"$f":"IF(B27<>\"\",VLOOKUP(B27,'Brongegevens dienst'!$S$3:$Y$14,7,),\"\")","v":""},",00"]
[17,null,null,null,null,null,null,null,null,null,null,"","",null,false,0,null,0,"",null,null,null,null,null,null,null,null,false,null,null,"Afsluting bij geen gunning","Via deze weg dank ik u voor de in deze verrichte inspanningen en de uitgebrachte offerte.\n\nWij gaan er van uit u hiermee voldoende te hebben geïnformeerd.\n \nMet vriendelijke groet, \n\nDe Minister van Economische Zaken en Klimaat, \nnamens deze: \nMevrouw M. Jacobs \nTeammanager Inkoop Uitvoering Centrum EZK, \n................................................................................. \nMinisterie van Economische Zaken en Klimaat \nInkoop Uitvoering Centrum EZK \nMandemaat 3 | 9405 TG | Assen | Kamer 3.060 \nPostbus 322 | 9400 AH | Assen \n................................................................................. \nAccountteam11@rvo.nl \nwww.rvo.nl ",{"$f":"IF(B28<>\"\",VLOOKUP(B28,'Brongegevens dienst'!$S$3:$Y$14,7,),\"\")","v":""},",00","E-mailgegevens bevestiging"]
[18,null,null,null,null,null,null,null,null,null,null,"","",null,false,0,null,0,"",null,null,null,null,null,null,null,null,false,null,null,"Tekst Punten bij geen gunning","Punten:                      ",{"$f":"IF(B29<>\"\",VLOOKUP(B29,'Brongegevens dienst'!$S$3:$Y$14,7,),\"\")","v":""},",00","Onderwerp","Bevestiging gunning "]
[19,null,null,null,null,null,null,null,null,null,null,{"$f":"CONCATENATE(G30,H30,I30,J30,K30)","v":""},{"$f":"IF(L30=\"JaJaNeeNeeNee\",\"Ja\",IF(L30=\"\",\"\",\"Nee\"))","v":""},null,{"$f":"IF(N30>0,IF(M30=\"Ja\",N30,\"999\"))","v":false},{"$f":"IF(M30=\"Ja\",IF(N30>0,AB30*$U$5,0),0)","v":0},null,{"$f":"IF(M30=\"Ja\",P30+Q30,0)","v":0},"",null,null,null,null,null,null,null,null,false,null,"Rang 2",{"$f":"IF(U9>1,IF(J1<>\"\",INDEX(B12:B51,MATCH(2,S12:S51,0)),\"\"),\"\")","v":""},{"$f":"IF(U9>1,IF(J1<>\"\",INDEX(R12:R51,MATCH(2,S12:S51,0)),\"\"),\"\")","v":""},{"$f":"IF(B30<>\"\",VLOOKUP(B30,'Brongegevens dienst'!$S$3:$Y$14,7,),\"\")","v":""},",00","Aanhef","Beste "]
[20,null,null,null,null,null,null,null,null,null,null,"","",null,false,0,null,0,"",null,null,null,null,null,null,null,null,false,null,null,null,{"$f":"IF(U9>1,TEXT(AF30,\"###,00\"),\"\")","v":""},{"$f":"IF(B31<>\"\",VLOOKUP(B31,'Brongegevens dienst'!$S$3:$Y$14,7,),\"\")","v":""},",00","Inleiding","Bedankt voor de beoordeling. Hierbij de bevestiging dat de opdracht is gegund. De gekozen kandidaat, "]
[21,null,null,null,null,null,null,null,null,null,null,{"$f":"CONCATENATE(G32,H32,I32,J32,K32)","v":""},{"$f":"IF(L32=\"JaJaNeeNeeNee\",\"Ja\",IF(L32=\"\",\"\",\"Nee\"))","v":""},null,{"$f":"IF(N32>0,IF(M32=\"Ja\",N32,\"999\"))","v":false},{"$f":"IF(M32=\"Ja\",IF(N32>0,AB32*$U$5,0),0)","v":0},null,{"$f":"IF(M32=\"Ja\",P32+Q32,0)","v":0},"",null,null,null,null,null,null,null,null,false,null,"Rang 3",{"$f":"IF(U9=3,IF(J1<>\"\",INDEX(B12:B51,MATCH(3,S12:S51,0)),\"\"),\"\")","v":""},{"$f":"IF(U9=3,IF(J1<>\"\",INDEX(R12:R51,MATCH(3,S12:S51,0)),\"\"),\"\")","v":""},{"$f":"IF(B32<>\"\",VLOOKUP(B32,'Brongegevens dienst'!$S$3:$Y$14,7,),\"\")","v":""},",00","Afsluiting","Graag wijzen we erop dat de kandidaat pas mag starten nadat er een geldige VOG (niet ouder dan 6 maanden op de startdatum van de werkzaamheden) en een door de kandidaat getekende Model Integriteitsverklaring Rijk voor externen is ontvangen door ??? Inhuur. Stem de exacte startdatum van deze kandidaat daarom dus altijd eerst af met ??? Inhuur.\n\nDe nadere overeenkomst wordt zo spoedig mogelijk opgesteld.\n\nMet vriendelijke groet,\n"]
[22,null,null,null,null,null,null,null,null,null,null,"","",null,false,0,null,0,"",null,null,null,null,null,null,null,null,false,null,null,null,{"$f":"IF(U9=3,TEXT(AF32,\"###,00\"),\"\")","v":""},{"$f":"IF(B33<>\"\",VLOOKUP(B33,'Brongegevens dienst'!$S$3:$Y$14,7,),\"\")","v":""},",00"]
[23,null,null,null,null,null,null,null,null,null,null,"","",null,false,0,null,0,"",null,null,null,null,null,null,null,null,false,null,"Rang 2 tekst",{"$f":"IF(U9>1,\" met \",\"\")","v":""},{"$f":"IF(U9>1,\" punten.\",\"\")","v":""},{"$f":"IF(B34<>\"\",VLOOKUP(B34,'Brongegevens dienst'!$S$3:$Y$14,7,),\"\")","v":""},",00"]
[24,null,null,null,null,null,null,null,null,null,null,"","",null,false,0,null,0,"",null,null,null,null,null,null,null,null,false,null,"Rang 3 tekst",{"$f":"IF(U9=3,\" met \",\"\")","v":""},{"$f":"IF(U9=3,\" punten.\",\"\")","v":""},{"$f":"IF(B35<>\"\",VLOOKUP(B35,'Brongegevens dienst'!$S$3:$Y$14,7,),\"\")","v":""},",00"]
[25,null,null,null,null,null,null,null,null,null,null,{"$f":"CONCATENATE(G36,H36,I36,J36,K36)","v":""},{"$f":"IF(L36=\"JaJaNeeNeeNee\",\"Ja\",IF(L36=\"\",\"\",\"Nee\"))","v":""},null,{"$f":"IF(N36>0,IF(M36=\"Ja\",N36,\"999\"))","v":false},{"$f":"IF(M36=\"Ja\",IF(N36>0,AB36*$U$5,0),0)","v":0},null,{"$f":"IF(M36=\"Ja\",P36+Q36,0)","v":0},"",null,null,null,null,null,null,null,null,false,null,null,null,null,{"$f":"IF(B36<>\"\",VLOOKUP(B36,'Brongegevens dienst'!$S$3:$Y$14,7,),\"\")","v":""},",00"]
[26,null,null,null,null,null,null,null,null,null,null,{"$f":"CONCATENATE(G37,H37,I37,J37,K37)","v":""},{"$f":"IF(L37=\"JaJaNeeNeeNee\",\"Ja\",IF(L37=\"\",\"\",\"Nee\"))","v":""},null,{"$f":"IF(N37>0,IF(M37=\"Ja\",N37,\"999\"))","v":false},{"$f":"IF(M37=\"Ja\",IF(N37>0,AB37*$U$5,0),0)","v":0},null,{"$f":"IF(M37=\"Ja\",P37+Q37,0)","v":0},"",null,null,null,null,null,null,null,null,false,null,null,null,null,{"$f":"IF(B37<>\"\",VLOOKUP(B37,'Brongegevens dienst'!$S$3:$Y$14,7,),\"\")","v":""},",00"]
[27,null,null,null,null,null,null,null,null,null,null,"","",null,false,0,null,0,"",null,null,null,null,null,null,null,null,false,null,null,null,null,{"$f":"IF(B38<>\"\",VLOOKUP(B38,'Brongegevens dienst'!$S$3:$Y$14,7,),\"\")","v":""},",00"]
[28,null,null,null,null,null,null,null,null,null,null,"","",null,false,0,null,0,"",null,null,null,null,null,null,null,null,false,null,null,null,null,{"$f":"IF(B39<>\"\",VLOOKUP(B39,'Brongegevens dienst'!$S$3:$Y$14,7,),\"\")","v":""},",00"]
[29,null,null,null,null,null,null,null,null,null,null,"","",null,false,0,null,0,"",null,null,null,null,null,null,null,null,false,null,null,null,null,{"$f":"IF(B40<>\"\",VLOOKUP(B40,'Brongegevens dienst'!$S$3:$Y$14,7,),\"\")","v":""},",00"]
[30,null,null,null,null,null,null,null,null,null,null,"","",null,false,0,null,0,"",null,null,null,null,null,null,null,null,false,null,null,null,null,{"$f":"IF(B41<>\"\",VLOOKUP(B41,'Brongegevens dienst'!$S$3:$Y$14,7,),\"\")","v":""},",00"]
[31,null,null,null,null,null,null,null,null,null,null,"","",null,false,0,null,0,"",null,null,null,null,null,null,null,null,false,null,null,null,null,{"$f":"IF(B42<>\"\",VLOOKUP(B42,'Brongegevens dienst'!$S$3:$Y$14,7,),\"\")","v":""},",00"]
[32,null,null,null,null,null,null,null,null,null,null,"","",null,false,0,null,0,"",null,null,null,null,null,null,null,null,false,null,null,null,null,{"$f":"IF(B43<>\"\",VLOOKUP(B43,'Brongegevens dienst'!$S$3:$Y$14,7,),\"\")","v":""},",00"]
[33,null,null,null,null,null,null,null,null,null,null,"","",null,false,0,null,0,"",null,null,null,null,null,null,null,null,false,null,null,null,null,{"$f":"IF(B44<>\"\",VLOOKUP(B44,'Brongegevens dienst'!$S$3:$Y$14,7,),\"\")","v":""},",00"]
[34,null,null,null,null,null,null,null,null,null,null,"","",null,false,0,null,0,"",null,null,null,null,null,null,null,null,false,null,null,null,null,{"$f":"IF(B45<>\"\",VLOOKUP(B45,'Brongegevens dienst'!$S$3:$Y$14,7,),\"\")","v":""},",00"]
[35,null,null,null,null,null,null,null,null,null,null,"","",null,false,0,null,0,"",null,null,null,null,null,null,null,null,false,null,null,null,null,{"$f":"IF(B46<>\"\",VLOOKUP(B46,'Brongegevens dienst'!$S$3:$Y$14,7,),\"\")","v":""},",00"]
[36,null,null,null,null,null,null,null,null,null,null,null,"",null,null,0,null,0,""]
[37,null,null,null,null,null,null,null,null,null,null,null,"",null,null,0,null,0,""]
[38,null,null,null,null,null,null,null,null,null,null,null,"",null,null,0,null,0,""]
[39,null,null,null,null,null,null,null,null,null,null,null,"",null,null,0,null,0,""]
[40,null,null,null,null,null,null,null,null,null,null,"","",null,false,0,null,{"$f":"IF(M51=\"Ja\",P51+Q51,0)","v":0},"",null,null,null,null,null,null,null,null,false,null,null,null,null,{"$f":"IF(B51<>\"\",VLOOKUP(B51,'Brongegevens dienst'!$S$3:$Y$14,7,),\"\")","v":""},{"$f":"TEXT(R51,\"###,00\")","v":",00"}]

{"sheet":"Offerteformulier","index":5,"n_rows":85,"n_cols":11,"rows_kept":85,"cut":false,"hidden":true,"merged":[[1,0,1,1],[4,0,4,6],[9,2,9,7],[3,4,3,6],[7,0,7,2],[2,0,3,2],[5,5,5,6],[5,0,5,2],[84,1,87,8],[53,2,53,8],[74,6,75,6],[74,4,75,4],[76,6,77,6],[80,5,80,9],[66,1,66,4],[67,1,67,4],[68,1,68,4],[69,1,69,4],[56,2,56,6],[65,1,65,5],[12,2,12,6],[13,2,13,6],[14,2,14,6],[19,2,19,6],[17,2,17,6],[18,2,18,6],[33,2,33,4],[35,2,35,4],[51,4,51,5],[54,7,55,9],[16,0,16,1],[21,0,21,1],[21,2,21,6],[29,2,29,6],[23,0,23,6],[25,2,25,7],[31,2,31,7],[61,0,64,0],[72,4,73,4],[43,4,43,6],[37,2,37,4],[39,2,39,4],[49,2,49,6],[45,2,45,6],[72,6,73,6],[57,2,57,6],[58,2,58,6],[59,2,59,6],[61,2,61,6],[62,2,62,6],[63,2,63,6],[64,2,64,6],[41,2,41,4]]}
["Offerteformulier ICT Inhuur",null,"Referentienummer",null,{"$f":"Inhuurformulier!D1","v":0},null,null,null,null,null,"Lijst"]
[{"$f":"Inhuurformulier!B57","v":0},null,null,null,null,null,null,null,null,null,"Ja"]
["Witte velden invullen en document samen met een CV van de kandidaat opsturen naar :",null,null,null,null,null,null,null,null,null,"Nee"]
[null,null,null,null,{"$f":"Inhuurformulier!D13","v":"iuc-inhuur@iuc-noord.nl"}]
[]
["Sluitingsmoment indienen van offertes :                       ",null,null,null,{"$f":"Inhuurformulier!C38","v":"2025-11-07"},{"$f":"Inhuurformulier!D38","v":45964.693691550929}]
[]
["Velden met een * zijn verplicht in te vullen."]
[]
[null,null,"AANVRAAGGEGEVENS"]
[]
["Inhurende organisatie"]
[null,"Ministerie",{"$f":"Inhuurformulier!B17","v":"OCW"}]
[null,"Deelnemer",{"$f":"Inhuurformulier!B18","v":"AWTI"}]
[null,"Dienstonderdeel",{"$f":"Inhuurformulier!B19","v":0}]
[]
["Functie in kwaliteitsraamwerk I(v)"]
[null,"Kwaliteitenprofiel",{"$f":"Inhuurformulier!B50","v":"1.1.3 APPLICATIEARCHITECTUUR"}]
[null,"Functiefamilie",{"$f":"Inhuurformulier!B51","v":"Uitvoering"}]
[null,"Functiegroep",{"$f":"Inhuurformulier!B52","v":"Expert IV"}]
[]
["Functienaam (roepnaam)",null,{"$f":"Inhuurformulier!B57","v":0}]
[]
["Zie bijbehorende formulier \"Aanvraag Inhuur ICT\" (zelfde referentienummer) voor uitgebreide informatie betreffende de aanvraag."]
[]
[null,null,"NO BID"]
[]
["Aanbieding","Aanbieding*"]
[]
[null,"Toelichting bij \"No-Bid\""]
[]
[null,null,"AANBIEDING ALGEMEEN"]
[]
["Opdrachtnemer","Naam*"]
[]
[null,"Contactpersoon*"]
[]
[null,"- Telefoonnummer*"]
[]
[null,"- E-mail*"]
[]
["Kandidaat","Naam*"]
[]
[null,"Postcode/Woonplaats*"]
[]
[null,"Geplande vakanties\nbinnen 3 maanden*"]
[]
["Social Return","Kandidaat uit doelgroep\nsocial return*"]
[]
["Keten","Beschrijving* \n\nBeschrijf de volledige keten hoe de kandidaat wordt ingehuurd. \n\nDenk hierbij ook aan : \n- alle tussenpartijen in de keten\n- waar kandidaat in loondienst  is \n- ZZP-er of DGA\n- Etc."]
[]
[null,"ZZP/DGA*",null,null,"Doorleen*"]
[]
[null,null,"EISEN BIJ DEZE AANVRAAG"]
[null,null,null,null,null,null,null,"Voldoet\naan eis*"]
[null,"Professionele Kennisgebieden","Opleiding, Certificaten, Kennisniveau"]
["Dominant Kwaliteitenprofiel*",{"$f":"IF(Inhuurformulier!B61<>\"\",Inhuurformulier!B61,\" \")","v":" "},{"$f":"IF(Inhuurformulier!C61<>\"\",Inhuurformulier!C61,\" \")","v":" "}]
[null,{"$f":"IF(Inhuurformulier!B62<>\"\",Inhuurformulier!B62,\" \")","v":" "},{"$f":"IF(Inhuurformulier!C62<>\"\",Inhuurformulier!C62,\" \")","v":" "}]
[null,{"$f":"IF(Inhuurformulier!B63<>\"\",Inhuurformulier!B63,\" \")","v":" "},{"$f":"IF(Inhuurformulier!C63<>\"\",Inhuurformulier!C63,\" \")","v":" "}]
[]
[null,"Kwaliteitenprofielen","Opleiding, Certificaten, Kennisniveau"]
["Overige vereiste kennisgebieden uit kwaliteits-raamwerk I(v)",{"$f":"IF(Inhuurformulier!B66<>\"\",Inhuurformulier!B66,\" \")","v":" "},{"$f":"IF(Inhuurformulier!C66<>\"\",Inhuurformulier!C66,\" \")","v":" "}]
[null,{"$f":"IF(Inhuurformulier!B67<>\"\",Inhuurformulier!B67,\" \")","v":" "},{"$f":"IF(Inhuurformulier!C67<>\"\",Inhuurformulier!C67,\" \")","v":" "}]
[null,{"$f":"IF(Inhuurformulier!B68<>\"\",Inhuurformulier!B68,\" \")","v":" "},{"$f":"IF(Inhuurformulier!C68<>\"\",Inhuurformulier!C68,\" \")","v":" "}]
[]
[null,"Werk- en denkniveau (algemeen en specifiek)",null,null,null,null,"Bewezen aantal jaar"]
["Ervaring",{"$f":"IF(Inhuurformulier!B71<>\"\",Inhuurformulier!B71,\" \")","v":" "},null,null,null,null,{"$f":"IF(Inhuurformulier!H71<>\"\",Inhuurformulier!H71,\" \")","v":" "}]
[null,{"$f":"IF(Inhuurformulier!B72<>\"\",Inhuurformulier!B72,\" \")","v":" "},null,null,null,null,{"$f":"IF(Inhuurformulier!H72<>\"\",Inhuurformulier!H72,\" \")","v":" "}]
[null,{"$f":"IF(Inhuurformulier!B73<>\"\",Inhuurformulier!B73,\" \")","v":" "},null,null,null,null,{"$f":"IF(Inhuurformulier!H73<>\"\",Inhuurformulier!H73,\" \")","v":" "}]
[]
[]
[null,null,"TARIEVEN EN KORTINGEN"]
[]
[null,null,"Aanbiedingstarief"]
[null,"Tarief excl. BTW*"]
[]
[null,"Verlengd tarief\n(indien van toepassing)"]
[]
[null,null,"ONDERTEKENING OFFERTE"]
[]
[null,"Handtekening gemandateerde",null,null,null,"1. Druk op de rechtermuisknop\n2. Kies \"Ondertekenen\"\n3. Vul naam of voeg een afbeelding in\n4. Klik op Ondertekenen\n5. Bevestig met \"OK\""]
[]
[null,null,"TOELICHTING AANGEBODEN KANDIDAAT"]
[]
["Schrijf een toelichting over de aangeboden kandidaat*"]

{"sheet":"Beoordelingsformulier","index":6,"n_rows":53,"n_cols":19,"rows_kept":53,"cut":false,"hidden":true,"merged":[[6,0,6,1],[4,0,4,1],[5,2,5,3],[6,2,6,3],[0,5,0,11],[4,4,5,4],[5,5,5,15],[4,13,4,15],[2,0,2,3],[0,0,0,2],[1,0,1,2],[2,5,2,15],[4,2,4,3],[5,0,5,1],[53,1,53,16],[9,8,9,14],[8,0,8,5],[11,9,12,9],[11,10,12,10],[11,11,12,11],[11,14,12,14],[11,8,12,8],[9,1,11,7],[9,0,11,0],[9,16,12,16],[11,13,12,13],[11,12,12,12]]}
["Beoordelen aangeboden kandidaten",null,null,null,"Referentienummer ",{"$f":"Inhuurformulier!D1","v":0}]
[{"$f":"Inhuurformulier!B57","v":0}]
["AANVRAAGGEGEVENS"]
[]
["Departement",null,{"$f":"Inhuurformulier!B17","v":"OCW"},null,"Volledig invullen\nen opsturen naar:"]
["Deelnemer",null,{"$f":"Inhuurformulier!B18","v":"AWTI"},null,null,{"$f":"Inhuurformulier!D13","v":"iuc-inhuur@iuc-noord.nl"}]
["Dienstsonderdeel",null,{"$f":"Inhuurformulier!B19","v":0}]
[]
["AANGEBODEN KANDIDATEN"]
[null,"Geef per aangeboden kandidaat aan of deze voldoet aan de gestelde minimum eisen in de aanvraag. Geef vervolgens per gunningscriterium waarop beoordeeld moet worden aan wat de score is. Deze kan nooit meer zijn dan de waarde bij het gunningscriterium zoals opgegeven in de aanvraag.\n\nLet op! Als invoerveld rood kleurt, dan is de ingevoerde waarde niet akkoord of is totaal score > maximale score.",null,null,null,null,null,null,"Scores Gunningscriteria bij deze aanvraag.\nIndien \"Voldoet aan functie gebonden eisen\" bij kandidaat is \"Nee\" geen punten toekennen, maar wel een toelichting over de ontbrekende eis(en) geven.",null,null,null,null,null,null,"Maximale score","Toelichting beoordeling\n- Voor elke afgewezen kandidaat verwachten wij een degelijke reden van afwijzing en de daarbij behorende scores.\n- Voor de gekozen kandidaat graag ook een gedegen onderbouwing waarom u deze kandidaat heeft gekozen.\n\nHoudt er s.v.p. bij het formuleren van de motivatie/aanbeveling rekening mee, dat deze toelichting één op één doorgestuurd wordt naar de opdrachtnemer.\n\nRijhoogte kan handmatig worden aangepast."]
[null,null,null,null,null,null,null,null,{"$f":"Inhuurformulier!C96","v":0},{"$f":"Inhuurformulier!C97","v":0},{"$f":"Inhuurformulier!C98","v":0},{"$f":"Inhuurformulier!C99","v":0},{"$f":"Inhuurformulier!C100","v":0},{"$f":"Inhuurformulier!C101","v":0},{"$f":"Inhuurformulier!C102","v":0},{"$f":"SUM(I11:O11)","v":0}]
[null,null,null,null,null,null,null,null,"2. Duurzaamheidsaspecten en social return doelgroep bij inzet van de Kandidaat","3. Relevante werkervaring van de Kandidaat","4. Kennis en vaardigheden van de Kandidaat","5. Beschikbaarheid Kandidaat","6. Mate waarin de Kandidaat de opdracht begrijpt","7. Kandidaat past bij organisatie","8. Plan van aanpak uitvoering\nopdracht"]
[null,"Opdrachtnemer","Contactpersoon","Kandidaat","Controle kandidaat\ndoor inhuurdesk","Voldoet aan functie gebonden eisen","ZZP","Tarief",null,null,null,null,null,null,null,"Totaal score"]
[1,{"$f":"'Overzicht inhuurdesk'!B12","v":0},{"$f":"'Overzicht inhuurdesk'!C12","v":0},{"$f":"'Overzicht inhuurdesk'!D12","v":0},{"$f":"IF(B14>\" \",IF('Overzicht inhuurdesk'!I12=\"Ja\",\"Voorwaardelijke inschrijving\",IF('Overzicht inhuurdesk'!J12=\"JA\",\"Strijdigheden vastgesteld\",IF('Overzicht inhuurdesk'!K12=\"Ja\",\"Meer dan 1x aangeboden\",IF('Overzicht inhuurdesk'!G12=\"Nee\",\"Voldoet niet aan eisen  volgens opdrachtnemer\",\"OK\")))),\" \")","v":" "},null,null,{"$f":"IF('Overzicht inhuurdesk'!$B12<>\"\",'Overzicht inhuurdesk'!N12,\"\")","v":""},null,null,null,null,null,null,null,{"$f":"IF('Overzicht inhuurdesk'!$B12>\"\",SUM(I14:O14),\"\")","v":""},null,null,"Keuze"]
[2,{"$f":"'Overzicht inhuurdesk'!B13","v":0},{"$f":"'Overzicht inhuurdesk'!C13","v":0},{"$f":"'Overzicht inhuurdesk'!D13","v":0},{"$f":"IF(B15>\" \",IF('Overzicht inhuurdesk'!I13=\"Ja\",\"Voorwaardelijke inschrijving\",IF('Overzicht inhuurdesk'!J13=\"JA\",\"Strijdigheden vastgesteld\",IF('Overzicht inhuurdesk'!K13=\"Ja\",\"Meer dan 1x aangeboden\",IF('Overzicht inhuurdesk'!G13=\"Nee\",\"Voldoet niet aan eisen  volgens opdrachtnemer\",\"OK\")))),\" \")","v":" "},null,null,{"$f":"IF('Overzicht inhuurdesk'!$B13<>\"\",'Overzicht inhuurdesk'!N13,\"\")","v":""},null,null,null,null,null,null,null,{"$f":"IF('Overzicht inhuurdesk'!$B13>\"\",SUM(I15:O15),\"\")","v":""},null,null,"Ja"]
[3,{"$f":"'Overzicht inhuurdesk'!B14","v":0},{"$f":"'Overzicht inhuurdesk'!C14","v":0},{"$f":"'Overzicht inhuurdesk'!D14","v":0},{"$f":"IF(B16>\" \",IF('Overzicht inhuurdesk'!I14=\"Ja\",\"Voorwaardelijke inschrijving\",IF('Overzicht inhuurdesk'!J14=\"JA\",\"Strijdigheden vastgesteld\",IF('Overzicht inhuurdesk'!K14=\"Ja\",\"Meer dan 1x aangeboden\",IF('Overzicht inhuurdesk'!G14=\"Nee\",\"Voldoet niet aan eisen  volgens opdrachtnemer\",\"OK\")))),\" \")","v":" "},null,null,{"$f":"IF('Overzicht inhuurdesk'!$B14<>\"\",'Overzicht inhuurdesk'!N14,\"\")","v":""},null,null,null,null,null,null,null,{"$f":"IF('Overzicht inhuurdesk'!$B14>\"\",SUM(I16:O16),\"\")","v":""},null,null,"Nee"]
[4,{"$f":"'Overzicht inhuurdesk'!B15","v":0},{"$f":"'Overzicht inhuurdesk'!C15","v":0},{"$f":"'Overzicht inhuurdesk'!D15","v":0},{"$f":"IF(B17>\" \",IF('Overzicht inhuurdesk'!I15=\"Ja\",\"Voorwaardelijke inschrijving\",IF('Overzicht inhuurdesk'!J15=\"JA\",\"Strijdigheden vastgesteld\",IF('Overzicht inhuurdesk'!K15=\"Ja\",\"Meer dan 1x aangeboden\",IF('Overzicht inhuurdesk'!G15=\"Nee\",\"Voldoet niet aan eisen  volgens opdrachtnemer\",\"OK\")))),\" \")","v":" "},null,null,{"$f":"IF('Overzicht inhuurdesk'!$B15<>\"\",'Overzicht inhuurdesk'!N15,\"\")","v":""},null,null,null,null,null,null,null,{"$f":"IF('Overzicht inhuurdesk'!$B15>\"\",SUM(I17:O17),\"\")","v":""}]
[5,{"$f":"'Overzicht inhuurdesk'!B16","v":0},{"$f":"'Overzicht inhuurdesk'!C16","v":0},{"$f":"'Overzicht inhuurdesk'!D16","v":0},{"$f":"IF(B18>\" \",IF('Overzicht inhuurdesk'!I16=\"Ja\",\"Voorwaardelijke inschrijving\",IF('Overzicht inhuurdesk'!J16=\"JA\",\"Strijdigheden vastgesteld\",IF('Overzicht inhuurdesk'!K16=\"Ja\",\"Meer dan 1x aangeboden\",IF('Overzicht inhuurdesk'!G16=\"Nee\",\"Voldoet niet aan eisen  volgens opdrachtnemer\",\"OK\")))),\" \")","v":" "},null,null,{"$f":"IF('Overzicht inhuurdesk'!$B16<>\"\",'Overzicht inhuurdesk'!N16,\"\")","v":""},null,null,null,null,null,null,null,{"$f":"IF('Overzicht inhuurdesk'!$B16>\"\",SUM(I18:O18),\"\")","v":""}]
[6,{"$f":"'Overzicht inhuurdesk'!B17","v":0},{"$f":"'Overzicht inhuurdesk'!C17","v":0},{"$f":"'Overzicht inhuurdesk'!D17","v":0},{"$f":"IF(B19>\" \",IF('Overzicht inhuurdesk'!I17=\"Ja\",\"Voorwaardelijke inschrijving\",IF('Overzicht inhuurdesk'!J17=\"JA\",\"Strijdigheden vastgesteld\",IF('Overzicht inhuurdesk'!K17=\"Ja\",\"Meer dan 1x aangeboden\",IF('Overzicht inhuurdesk'!G17=\"Nee\",\"Voldoet niet aan eisen  volgens opdrachtnemer\",\"OK\")))),\" \")","v":" "},null,null,{"$f":"IF('Overzicht inhuurdesk'!$B17<>\"\",'Overzicht inhuurdesk'!N17,\"\")","v":""},null,null,null,null,null,null,null,{"$f":"IF('Overzicht inhuurdesk'!$B17>\"\",SUM(I19:O19),\"\")","v":""}]
[7,{"$f":"'Overzicht inhuurdesk'!B18","v":0},{"$f":"'Overzicht inhuurdesk'!C18","v":0},{"$f":"'Overzicht inhuurdesk'!D18","v":0},{"$f":"IF(B20>\" \",IF('Overzicht inhuurdesk'!I18=\"Ja\",\"Voorwaardelijke inschrijving\",IF('Overzicht inhuurdesk'!J18=\"JA\",\"Strijdigheden vastgesteld\",IF('Overzicht inhuurdesk'!K18=\"Ja\",\"Meer dan 1x aangeboden\",IF('Overzicht inhuurdesk'!G18=\"Nee\",\"Voldoet niet aan eisen  volgens opdrachtnemer\",\"OK\")))),\" \")","v":" "},null,null,{"$f":"IF('Overzicht inhuurdesk'!$B18<>\"\",'Overzicht inhuurdesk'!N18,\"\")","v":""},null,null,null,null,null,null,null,{"$f":"IF('Overzicht inhuurdesk'!$B18>\"\",SUM(I20:O20),\"\")","v":""}]
[8,{"$f":"'Overzicht inhuurdesk'!B19","v":0},{"$f":"'Overzicht inhuurdesk'!C19","v":0},{"$f":"'Overzicht inhuurdesk'!D19","v":0},{"$f":"IF(B21>\" \",IF('Overzicht inhuurdesk'!I19=\"Ja\",\"Voorwaardelijke inschrijving\",IF('Overzicht inhuurdesk'!J19=\"JA\",\"Strijdigheden vastgesteld\",IF('Overzicht inhuurdesk'!K19=\"Ja\",\"Meer dan 1x aangeboden\",IF('Overzicht inhuurdesk'!G19=\"Nee\",\"Voldoet niet aan eisen  volgens opdrachtnemer\",\"OK\")))),\" \")","v":" "},null,null,{"$f":"IF('Overzicht inhuurdesk'!$B19<>\"\",'Overzicht inhuurdesk'!N19,\"\")","v":""},null,null,null,null,null,null,null,{"$f":"IF('Overzicht inhuurdesk'!$B19>\"\",SUM(I21:O21),\"\")","v":""}]
[9,{"$f":"'Overzicht inhuurdesk'!B20","v":0},{"$f":"'Overzicht inhuurdesk'!C20","v":0},{"$f":"'Overzicht inhuurdesk'!D20","v":0},{"$f":"IF(B22>\" \",IF('Overzicht inhuurdesk'!I20=\"Ja\",\"Voorwaardelijke inschrijving\",IF('Overzicht inhuurdesk'!J20=\"JA\",\"Strijdigheden vastgesteld\",IF('Overzicht inhuurdesk'!K20=\"Ja\",\"Meer dan 1x aangeboden\",IF('Overzicht inhuurdesk'!G20=\"Nee\",\"Voldoet niet aan eisen  volgens opdrachtnemer\",\"OK\")))),\" \")","v":" "},null,null,{"$f":"IF('Overzicht inhuurdesk'!$B20<>\"\",'Overzicht inhuurdesk'!N20,\"\")","v":""},null,null,null,null,null,null,null,{"$f":"IF('Overzicht inhuurdesk'!$B20>\"\",SUM(I22:O22),\"\")","v":""}]
[10,{"$f":"'Overzicht inhuurdesk'!B21","v":0},{"$f":"'Overzicht inhuurdesk'!C21","v":0},{"$f":"'Overzicht inhuurdesk'!D21","v":0},{"$f":"IF(B23>\" \",IF('Overzicht inhuurdesk'!I21=\"Ja\",\"Voorwaardelijke inschrijving\",IF('Overzicht inhuurdesk'!J21=\"JA\",\"Strijdigheden vastgesteld\",IF('Overzicht inhuurdesk'!K21=\"Ja\",\"Meer dan 1x aangeboden\",IF('Overzicht inhuurdesk'!G21=\"Nee\",\"Voldoet niet aan eisen  volgens opdrachtnemer\",\"OK\")))),\" \")","v":" "},null,null,{"$f":"IF('Overzicht inhuurdesk'!$B21<>\"\",'Overzicht inhuurdesk'!N21,\"\")","v":""},null,null,null,null,null,null,null,{"$f":"IF('Overzicht inhuurdesk'!$B21>\"\",SUM(I23:O23),\"\")","v":""}]
[11,{"$f":"'Overzicht inhuurdesk'!B22","v":0},{"$f":"'Overzicht inhuurdesk'!C22","v":0},{"$f":"'Overzicht inhuurdesk'!D22","v":0},{"$f":"IF(B24>\" \",IF('Overzicht inhuurdesk'!I22=\"Ja\",\"Voorwaardelijke inschrijving\",IF('Overzicht inhuurdesk'!J22=\"JA\",\"Strijdigheden vastgesteld\",IF('Overzicht inhuurdesk'!K22=\"Ja\",\"Meer dan 1x aangeboden\",IF('Overzicht inhuurdesk'!G22=\"Nee\",\"Voldoet niet aan eisen  volgens opdrachtnemer\",\"OK\")))),\" \")","v":" "},null,null,{"$f":"IF('Overzicht inhuurdesk'!$B22<>\"\",'Overzicht inhuurdesk'!N22,\"\")","v":""},null,null,null,null,null,null,null,{"$f":"IF('Overzicht inhuurdesk'!$B22>\"\",SUM(I24:O24),\"\")","v":""}]
[12,{"$f":"'Overzicht inhuurdesk'!B23","v":0},{"$f":"'Overzicht inhuurdesk'!C23","v":0},{"$f":"'Overzicht inhuurdesk'!D23","v":0},{"$f":"IF(B25>\" \",IF('Overzicht inhuurdesk'!I23=\"Ja\",\"Voorwaardelijke inschrijving\",IF('Overzicht inhuurdesk'!J23=\"JA\",\"Strijdigheden vastgesteld\",IF('Overzicht inhuurdesk'!K23=\"Ja\",\"Meer dan 1x aangeboden\",IF('Overzicht inhuurdesk'!G23=\"Nee\",\"Voldoet niet aan eisen  volgens opdrachtnemer\",\"OK\")))),\" \")","v":" "},null,null,{"$f":"IF('Overzicht inhuurdesk'!$B23<>\"\",'Overzicht inhuurdesk'!N23,\"\")","v":""},null,null,null,null,null,null,null,{"$f":"IF('Overzicht inhuurdesk'!$B23>\"\",SUM(I25:O25),\"\")","v":""}]
[13,{"$f":"'Overzicht inhuurdesk'!B24","v":0},{"$f":"'Overzicht inhuurdesk'!C24","v":0},{"$f":"'Overzicht inhuurdesk'!D24","v":0},{"$f":"IF(B26>\" \",IF('Overzicht inhuurdesk'!I24=\"Ja\",\"Voorwaardelijke inschrijving\",IF('Overzicht inhuurdesk'!J24=\"JA\",\"Strijdigheden vastgesteld\",IF('Overzicht inhuurdesk'!K24=\"Ja\",\"Meer dan 1x aangeboden\",IF('Overzicht inhuurdesk'!G24=\"Nee\",\"Voldoet niet aan eisen  volgens opdrachtnemer\",\"OK\")))),\" \")","v":" "},null,null,{"$f":"IF('Overzicht inhuurdesk'!$B24<>\"\",'Overzicht inhuurdesk'!N24,\"\")","v":""},null,null,null,null,null,null,null,{"$f":"IF('Overzicht inhuurdesk'!$B24>\"\",SUM(I26:O26),\"\")","v":""}]
[14,{"$f":"'Overzicht inhuurdesk'!B25","v":0},{"$f":"'Overzicht inhuurdesk'!C25","v":0},{"$f":"'Overzicht inhuurdesk'!D25","v":0},{"$f":"IF(B27>\" \",IF('Overzicht inhuurdesk'!I25=\"Ja\",\"Voorwaardelijke inschrijving\",IF('Overzicht inhuurdesk'!J25=\"JA\",\"Strijdigheden vastgesteld\",IF('Overzicht inhuurdesk'!K25=\"Ja\",\"Meer dan 1x aangeboden\",IF('Overzicht inhuurdesk'!G25=\"Nee\",\"Voldoet niet aan eisen  volgens opdrachtnemer\",\"OK\")))),\" \")","v":" "},null,null,{"$f":"IF('Overzicht inhuurdesk'!$B25<>\"\",'Overzicht inhuurdesk'!N25,\"\")","v":""},null,null,null,null,null,null,null,{"$f":"IF('Overzicht inhuurdesk'!$B25>\"\",SUM(I27:O27),\"\")","v":""}]
[15,{"$f":"'Overzicht inhuurdesk'!B26","v":0},{"$f":"'Overzicht inhuurdesk'!C26","v":0},{"$f":"'Overzicht inhuurdesk'!D26","v":0},{"$f":"IF(B28>\" \",IF('Overzicht inhuurdesk'!I26=\"Ja\",\"Voorwaardelijke inschrijving\",IF('Overzicht inhuurdesk'!J26=\"JA\",\"Strijdigheden vastgesteld\",IF('Overzicht inhuurdesk'!K26=\"Ja\",\"Meer dan 1x aangeboden\",IF('Overzicht inhuurdesk'!G26=\"Nee\",\"Voldoet niet aan eisen  volgens opdrachtnemer\",\"OK\")))),\" \")","v":" "},null,null,{"$f":"IF('Overzicht inhuurdesk'!$B26<>\"\",'Overzicht inhuurdesk'!N26,\"\")","v":""},null,null,null,null,null,null,null,{"$f":"IF('Overzicht inhuurdesk'!$B26>\"\",SUM(I28:O28),\"\")","v":""}]
[16,{"$f":"'Overzicht inhuurdesk'!B27","v":0},{"$f":"'Overzicht inhuurdesk'!C27","v":0},{"$f":"'Overzicht inhuurdesk'!D27","v":0},{"$f":"IF(B29>\" \",IF('Overzicht inhuurdesk'!I27=\"Ja\",\"Voorwaardelijke inschrijving\",IF('Overzicht inhuurdesk'!J27=\"JA\",\"Strijdigheden vastgesteld\",IF('Overzicht inhuurdesk'!K27=\"Ja\",\"Meer dan 1x aangeboden\",IF('Overzicht inhuurdesk'!G27=\"Nee\",\"Voldoet niet aan eisen  volgens opdrachtnemer\",\"OK\")))),\" \")","v":" "},null,null,{"$f":"IF('Overzicht inhuurdesk'!$B27<>\"\",'Overzicht inhuurdesk'!N27,\"\")","v":""},null,null,null,null,null,null,null,{"$f":"IF('Overzicht inhuurdesk'!$B27>\"\",SUM(I29:O29),\"\")","v":""}]
[17,{"$f":"'Overzicht inhuurdesk'!B28","v":0},{"$f":"'Overzicht inhuurdesk'!C28","v":0},{"$f":"'Overzicht inhuurdesk'!D28","v":0},{"$f":"IF(B30>\" \",IF('Overzicht inhuurdesk'!I28=\"Ja\",\"Voorwaardelijke inschrijving\",IF('Overzicht inhuurdesk'!J28=\"JA\",\"Strijdigheden vastgesteld\",IF('Overzicht inhuurdesk'!K28=\"Ja\",\"Meer dan 1x aangeboden\",IF('Overzicht inhuurdesk'!G28=\"Nee\",\"Voldoet niet aan eisen  volgens opdrachtnemer\",\"OK\")))),\" \")","v":" "},null,null,{"$f":"IF('Overzicht inhuurdesk'!$B28<>\"\",'Overzicht inhuurdesk'!N28,\"\")","v":""},null,null,null,null,null,null,null,{"$f":"IF('Overzicht inhuurdesk'!$B28>\"\",SUM(I30:O30),\"\")","v":""}]
[18,{"$f":"'Overzicht inhuurdesk'!B29","v":0},{"$f":"'Overzicht inhuurdesk'!C29","v":0},{"$f":"'Overzicht inhuurdesk'!D29","v":0},{"$f":"IF(B31>\" \",IF('Overzicht inhuurdesk'!I29=\"Ja\",\"Voorwaardelijke inschrijving\",IF('Overzicht inhuurdesk'!J29=\"JA\",\"Strijdigheden vastgesteld\",IF('Overzicht inhuurdesk'!K29=\"Ja\",\"Meer dan 1x aangeboden\",IF('Overzicht inhuurdesk'!G29=\"Nee\",\"Voldoet niet aan eisen  volgens opdrachtnemer\",\"OK\")))),\" \")","v":" "},null,null,{"$f":"IF('Overzicht inhuurdesk'!$B29<>\"\",'Overzicht inhuurdesk'!N29,\"\")","v":""},null,null,null,null,null,null,null,{"$f":"IF('Overzicht inhuurdesk'!$B29>\"\",SUM(I31:O31),\"\")","v":""}]
[19,{"$f":"'Overzicht inhuurdesk'!B30","v":0},{"$f":"'Overzicht inhuurdesk'!C30","v":0},{"$f":"'Overzicht inhuurdesk'!D30","v":0},{"$f":"IF(B32>\" \",IF('Overzicht inhuurdesk'!I30=\"Ja\",\"Voorwaardelijke inschrijving\",IF('Overzicht inhuurdesk'!J30=\"JA\",\"Strijdigheden vastgesteld\",IF('Overzicht inhuurdesk'!K30=\"Ja\",\"Meer dan 1x aangeboden\",IF('Overzicht inhuurdesk'!G30=\"Nee\",\"Voldoet niet aan eisen  volgens opdrachtnemer\",\"OK\")))),\" \")","v":" "},null,null,{"$f":"IF('Overzicht inhuurdesk'!$B30<>\"\",'Overzicht inhuurdesk'!N30,\"\")","v":""},null,null,null,null,null,null,null,{"$f":"IF('Overzicht inhuurdesk'!$B30>\"\",SUM(I32:O32),\"\")","v":""}]
[20,{"$f":"'Overzicht inhuurdesk'!B31","v":0},{"$f":"'Overzicht inhuurdesk'!C31","v":0},{"$f":"'Overzicht inhuurdesk'!D31","v":0},{"$f":"IF(B33>\" \",IF('Overzicht inhuurdesk'!I31=\"Ja\",\"Voorwaardelijke inschrijving\",IF('Overzicht inhuurdesk'!J31=\"JA\",\"Strijdigheden vastgesteld\",IF('Overzicht inhuurdesk'!K31=\"Ja\",\"Meer dan 1x aangeboden\",IF('Overzicht inhuurdesk'!G31=\"Nee\",\"Voldoet niet aan eisen  volgens opdrachtnemer\",\"OK\")))),\" \")","v":" "},null,null,{"$f":"IF('Overzicht inhuurdesk'!$B31<>\"\",'Overzicht inhuurdesk'!N31,\"\")","v":""},null,null,null,null,null,null,null,{"$f":"IF('Overzicht inhuurdesk'!$B31>\"\",SUM(I33:O33),\"\")","v":""}]
[21,{"$f":"'Overzicht inhuurdesk'!B32","v":0},{"$f":"'Overzicht inhuurdesk'!C32","v":0},{"$f":"'Overzicht inhuurdesk'!D32","v":0},{"$f":"IF(B34>\" \",IF('Overzicht inhuurdesk'!I32=\"Ja\",\"Voorwaardelijke inschrijving\",IF('Overzicht inhuurdesk'!J32=\"JA\",\"Strijdigheden vastgesteld\",IF('Overzicht inhuurdesk'!K32=\"Ja\",\"Meer dan 1x aangeboden\",IF('Overzicht inhuurdesk'!G32=\"Nee\",\"Voldoet niet aan eisen  volgens opdrachtnemer\",\"OK\")))),\" \")","v":" "},null,null,{"$f":"IF('Overzicht inhuurdesk'!$B32<>\"\",'Overzicht inhuurdesk'!N32,\"\")","v":""},null,null,null,null,null,null,null,{"$f":"IF('Overzicht inhuurdesk'!$B32>\"\",SUM(I34:O34),\"\")","v":""}]
[22,{"$f":"'Overzicht inhuurdesk'!B33","v":0},{"$f":"'Overzicht inhuurdesk'!C33","v":0},{"$f":"'Overzicht inhuurdesk'!D33","v":0},{"$f":"IF(B35>\" \",IF('Overzicht inhuurdesk'!I33=\"Ja\",\"Voorwaardelijke inschrijving\",IF('Overzicht inhuurdesk'!J33=\"JA\",\"Strijdigheden vastgesteld\",IF('Overzicht inhuurdesk'!K33=\"Ja\",\"Meer dan 1x aangeboden\",IF('Overzicht inhuurdesk'!G33=\"Nee\",\"Voldoet niet aan eisen  volgens opdrachtnemer\",\"OK\")))),\" \")","v":" "},null,null,{"$f":"IF('Overzicht inhuurdesk'!$B33<>\"\",'Overzicht inhuurdesk'!N33,\"\")","v":""},null,null,null,null,null,null,null,{"$f":"IF('Overzicht inhuurdesk'!$B33>\"\",SUM(I35:O35),\"\")","v":""}]
[23,{"$f":"'Overzicht inhuurdesk'!B34","v":0},{"$f":"'Overzicht inhuurdesk'!C34","v":0},{"$f":"'Overzicht inhuurdesk'!D34","v":0},{"$f":"IF(B36>\" \",IF('Overzicht inhuurdesk'!I34=\"Ja\",\"Voorwaardelijke inschrijving\",IF('Overzicht inhuurdesk'!J34=\"JA\",\"Strijdigheden vastgesteld\",IF('Overzicht inhuurdesk'!K34=\"Ja\",\"Meer dan 1x aangeboden\",IF('Overzicht inhuurdesk'!G34=\"Nee\",\"Voldoet niet aan eisen  volgens opdrachtnemer\",\"OK\")))),\" \")","v":" "},null,null,{"$f":"IF('Overzicht inhuurdesk'!$B34<>\"\",'Overzicht inhuurdesk'!N34,\"\")","v":""},null,null,null,null,null,null,null,{"$f":"IF('Overzicht inhuurdesk'!$B34>\"\",SUM(I36:O36),\"\")","v":""}]
[24,{"$f":"'Overzicht inhuurdesk'!B35","v":0},{"$f":"'Overzicht inhuurdesk'!C35","v":0},{"$f":"'Overzicht inhuurdesk'!D35","v":0},{"$f":"IF(B37>\" \",IF('Overzicht inhuurdesk'!I35=\"Ja\",\"Voorwaardelijke inschrijving\",IF('Overzicht inhuurdesk'!J35=\"JA\",\"Strijdigheden vastgesteld\",IF('Overzicht inhuurdesk'!K35=\"Ja\",\"Meer dan 1x aangeboden\",IF('Overzicht inhuurdesk'!G35=\"Nee\",\"Voldoet niet aan eisen  volgens opdrachtnemer\",\"OK\")))),\" \")","v":" "},null,null,{"$f":"IF('Overzicht inhuurdesk'!$B35<>\"\",'Overzicht inhuurdesk'!N35,\"\")","v":""},null,null,null,null,null,null,null,{"$f":"IF('Overzicht inhuurdesk'!$B35>\"\",SUM(I37:O37),\"\")","v":""}]
[25,{"$f":"'Overzicht inhuurdesk'!B36","v":0},{"$f":"'Overzicht inhuurdesk'!C36","v":0},{"$f":"'Overzicht inhuurdesk'!D36","v":0},{"$f":"IF(B38>\" \",IF('Overzicht inhuurdesk'!I36=\"Ja\",\"Voorwaardelijke inschrijving\",IF('Overzicht inhuurdesk'!J36=\"JA\",\"Strijdigheden vastgesteld\",IF('Overzicht inhuurdesk'!K36=\"Ja\",\"Meer dan 1x aangeboden\",IF('Overzicht inhuurdesk'!G36=\"Nee\",\"Voldoet niet aan eisen  volgens opdrachtnemer\",\"OK\")))),\" \")","v":" "},null,null,{"$f":"IF('Overzicht inhuurdesk'!$B36<>\"\",'Overzicht inhuurdesk'!N36,\"\")","v":""},null,null,null,null,null,null,null,{"$f":"IF('Overzicht inhuurdesk'!$B36>\"\",SUM(I38:O38),\"\")","v":""}]
[26,{"$f":"'Overzicht inhuurdesk'!B37","v":0},{"$f":"'Overzicht inhuurdesk'!C37","v":0},{"$f":"'Overzicht inhuurdesk'!D37","v":0},{"$f":"IF(B39>\" \",IF('Overzicht inhuurdesk'!I37=\"Ja\",\"Voorwaardelijke inschrijving\",IF('Overzicht inhuurdesk'!J37=\"JA\",\"Strijdigheden vastgesteld\",IF('Overzicht inhuurdesk'!K37=\"Ja\",\"Meer dan 1x aangeboden\",IF('Overzicht inhuurdesk'!G37=\"Nee\",\"Voldoet niet aan eisen  volgens opdrachtnemer\",\"OK\")))),\" \")","v":" "},null,null,{"$f":"IF('Overzicht inhuurdesk'!$B37<>\"\",'Overzicht inhuurdesk'!N37,\"\")","v":""},null,null,null,null,null,null,null,{"$f":"IF('Overzicht inhuurdesk'!$B37>\"\",SUM(I39:O39),\"\")","v":""}]
[27,{"$f":"'Overzicht inhuurdesk'!B38","v":0},{"$f":"'Overzicht inhuurdesk'!C38","v":0},{"$f":"'Overzicht inhuurdesk'!D38","v":0},{"$f":"IF(B40>\" \",IF('Overzicht inhuurdesk'!I38=\"Ja\",\"Voorwaardelijke inschrijving\",IF('Overzicht inhuurdesk'!J38=\"JA\",\"Strijdigheden vastgesteld\",IF('Overzicht inhuurdesk'!K38=\"Ja\",\"Meer dan 1x aangeboden\",IF('Overzicht inhuurdesk'!G38=\"Nee\",\"Voldoet niet aan eisen  volgens opdrachtnemer\",\"OK\")))),\" \")","v":" "},null,null,{"$f":"IF('Overzicht inhuurdesk'!$B38<>\"\",'Overzicht inhuurdesk'!N38,\"\")","v":""},null,null,null,null,null,null,null,{"$f":"IF('Overzicht inhuurdesk'!$B38>\"\",SUM(I40:O40),\"\")","v":""}]
[28,{"$f":"'Overzicht inhuurdesk'!B39","v":0},{"$f":"'Overzicht inhuurdesk'!C39","v":0},{"$f":"'Overzicht inhuurdesk'!D39","v":0},{"$f":"IF(B41>\" \",IF('Overzicht inhuurdesk'!I39=\"Ja\",\"Voorwaardelijke inschrijving\",IF('Overzicht inhuurdesk'!J39=\"JA\",\"Strijdigheden vastgesteld\",IF('Overzicht inhuurdesk'!K39=\"Ja\",\"Meer dan 1x aangeboden\",IF('Overzicht inhuurdesk'!G39=\"Nee\",\"Voldoet niet aan eisen  volgens opdrachtnemer\",\"OK\")))),\" \")","v":" "},null,null,{"$f":"IF('Overzicht inhuurdesk'!$B39<>\"\",'Overzicht inhuurdesk'!N39,\"\")","v":""},null,null,null,null,null,null,null,{"$f":"IF('Overzicht inhuurdesk'!$B39>\"\",SUM(I41:O41),\"\")","v":""}]
[29,{"$f":"'Overzicht inhuurdesk'!B40","v":0},{"$f":"'Overzicht inhuurdesk'!C40","v":0},{"$f":"'Overzicht inhuurdesk'!D40","v":0},{"$f":"IF(B42>\" \",IF('Overzicht inhuurdesk'!I40=\"Ja\",\"Voorwaardelijke inschrijving\",IF('Overzicht inhuurdesk'!J40=\"JA\",\"Strijdigheden vastgesteld\",IF('Overzicht inhuurdesk'!K40=\"Ja\",\"Meer dan 1x aangeboden\",IF('Overzicht inhuurdesk'!G40=\"Nee\",\"Voldoet niet aan eisen  volgens opdrachtnemer\",\"OK\")))),\" \")","v":" "},null,null,{"$f":"IF('Overzicht inhuurdesk'!$B40<>\"\",'Overzicht inhuurdesk'!N40,\"\")","v":""},null,null,null,null,null,null,null,{"$f":"IF('Overzicht inhuurdesk'!$B40>\"\",SUM(I42:O42),\"\")","v":""}]
[30,{"$f":"'Overzicht inhuurdesk'!B41","v":0},{"$f":"'Overzicht inhuurdesk'!C41","v":0},{"$f":"'Overzicht inhuurdesk'!D41","v":0},{"$f":"IF(B43>\" \",IF('Overzicht inhuurdesk'!I41=\"Ja\",\"Voorwaardelijke inschrijving\",IF('Overzicht inhuurdesk'!J41=\"JA\",\"Strijdigheden vastgesteld\",IF('Overzicht inhuurdesk'!K41=\"Ja\",\"Meer dan 1x aangeboden\",IF('Overzicht inhuurdesk'!G41=\"Nee\",\"Voldoet niet aan eisen  volgens opdrachtnemer\",\"OK\")))),\" \")","v":" "},null,null,{"$f":"IF('Overzicht inhuurdesk'!$B41<>\"\",'Overzicht inhuurdesk'!N41,\"\")","v":""},null,null,null,null,null,null,null,{"$f":"IF('Overzicht inhuurdesk'!$B41>\"\",SUM(I43:O43),\"\")","v":""}]
[31,{"$f":"'Overzicht inhuurdesk'!B42","v":0},{"$f":"'Overzicht inhuurdesk'!C42","v":0},{"$f":"'Overzicht inhuurdesk'!D42","v":0},{"$f":"IF(B44>\" \",IF('Overzicht inhuurdesk'!I42=\"Ja\",\"Voorwaardelijke inschrijving\",IF('Overzicht inhuurdesk'!J42=\"JA\",\"Strijdigheden vastgesteld\",IF('Overzicht inhuurdesk'!K42=\"Ja\",\"Meer dan 1x aangeboden\",IF('Overzicht inhuurdesk'!G42=\"Nee\",\"Voldoet niet aan eisen  volgens opdrachtnemer\",\"OK\")))),\" \")","v":" "},null,null,{"$f":"IF('Overzicht inhuurdesk'!$B42<>\"\",'Overzicht inhuurdesk'!N42,\"\")","v":""},null,null,null,null,null,null,null,{"$f":"IF('Overzicht inhuurdesk'!$B42>\"\",SUM(I44:O44),\"\")","v":""}]
[32,{"$f":"'Overzicht inhuurdesk'!B43","v":0},{"$f":"'Overzicht inhuurdesk'!C43","v":0},{"$f":"'Overzicht inhuurdesk'!D43","v":0},{"$f":"IF(B45>\" \",IF('Overzicht inhuurdesk'!I43=\"Ja\",\"Voorwaardelijke inschrijving\",IF('Overzicht inhuurdesk'!J43=\"JA\",\"Strijdigheden vastgesteld\",IF('Overzicht inhuurdesk'!K43=\"Ja\",\"Meer dan 1x aangeboden\",IF('Overzicht inhuurdesk'!G43=\"Nee\",\"Voldoet niet aan eisen  volgens opdrachtnemer\",\"OK\")))),\" \")","v":" "},null,null,{"$f":"IF('Overzicht inhuurdesk'!$B43<>\"\",'Overzicht inhuurdesk'!N43,\"\")","v":""},null,null,null,null,null,null,null,{"$f":"IF('Overzicht inhuurdesk'!$B43>\"\",SUM(I45:O45),\"\")","v":""}]
[33,{"$f":"'Overzicht inhuurdesk'!B44","v":0},{"$f":"'Overzicht inhuurdesk'!C44","v":0},{"$f":"'Overzicht inhuurdesk'!D44","v":0},{"$f":"IF(B46>\" \",IF('Overzicht inhuurdesk'!I44=\"Ja\",\"Voorwaardelijke inschrijving\",IF('Overzicht inhuurdesk'!J44=\"JA\",\"Strijdigheden vastgesteld\",IF('Overzicht inhuurdesk'!K44=\"Ja\",\"Meer dan 1x aangeboden\",IF('Overzicht inhuurdesk'!G44=\"Nee\",\"Voldoet niet aan eisen  volgens opdrachtnemer\",\"OK\")))),\" \")","v":" "},null,null,{"$f":"IF('Overzicht inhuurdesk'!$B44<>\"\",'Overzicht inhuurdesk'!N44,\"\")","v":""},null,null,null,null,null,null,null,{"$f":"IF('Overzicht inhuurdesk'!$B44>\"\",SUM(I46:O46),\"\")","v":""}]
[34,{"$f":"'Overzicht inhuurdesk'!B45","v":0},{"$f":"'Overzicht inhuurdesk'!C45","v":0},{"$f":"'Overzicht inhuurdesk'!D45","v":0},{"$f":"IF(B47>\" \",IF('Overzicht inhuurdesk'!I45=\"Ja\",\"Voorwaardelijke inschrijving\",IF('Overzicht inhuurdesk'!J45=\"JA\",\"Strijdigheden vastgesteld\",IF('Overzicht inhuurdesk'!K45=\"Ja\",\"Meer dan 1x aangeboden\",IF('Overzicht inhuurdesk'!G45=\"Nee\",\"Voldoet niet aan eisen  volgens opdrachtnemer\",\"OK\")))),\" \")","v":" "},null,null,{"$f":"IF('Overzicht inhuurdesk'!$B45<>\"\",'Overzicht inhuurdesk'!N45,\"\")","v":""},null,null,null,null,null,null,null,{"$f":"IF('Overzicht inhuurdesk'!$B45>\"\",SUM(I47:O47),\"\")","v":""}]
[35,{"$f":"'Overzicht inhuurdesk'!B46","v":0},{"$f":"'Overzicht inhuurdesk'!C46","v":0},{"$f":"'Overzicht inhuurdesk'!D46","v":0},{"$f":"IF(B48>\" \",IF('Overzicht inhuurdesk'!I46=\"Ja\",\"Voorwaardelijke inschrijving\",IF('Overzicht inhuurdesk'!J46=\"JA\",\"Strijdigheden vastgesteld\",IF('Overzicht inhuurdesk'!K46=\"Ja\",\"Meer dan 1x aangeboden\",IF('Overzicht inhuurdesk'!G46=\"Nee\",\"Voldoet niet aan eisen  volgens opdrachtnemer\",\"OK\")))),\" \")","v":" "},null,null,{"$f":"IF('Overzicht inhuurdesk'!$B46<>\"\",'Overzicht inhuurdesk'!N46,\"\")","v":""},null,null,null,null,null,null,null,{"$f":"IF('Overzicht inhuurdesk'!$B46>\"\",SUM(I48:O48),\"\")","v":""}]
[36,{"$f":"'Overzicht inhuurdesk'!B47","v":0},{"$f":"'Overzicht inhuurdesk'!C47","v":0},{"$f":"'Overzicht inhuurdesk'!D47","v":0},{"$f":"IF(B49>\" \",IF('Overzicht inhuurdesk'!I47=\"Ja\",\"Voorwaardelijke inschrijving\",IF('Overzicht inhuurdesk'!J47=\"JA\",\"Strijdigheden vastgesteld\",IF('Overzicht inhuurdesk'!K47=\"Ja\",\"Meer dan 1x aangeboden\",IF('Overzicht inhuurdesk'!G47=\"Nee\",\"Voldoet niet aan eisen  volgens opdrachtnemer\",\"OK\")))),\" \")","v":" "},null,null,{"$f":"IF('Overzicht inhuurdesk'!$B47<>\"\",'Overzicht inhuurdesk'!N47,\"\")","v":""},null,null,null,null,null,null,null,{"$f":"IF('Overzicht inhuurdesk'!$B47>\"\",SUM(I49:O49),\"\")","v":""}]
[37,{"$f":"'Overzicht inhuurdesk'!B48","v":0},{"$f":"'Overzicht inhuurdesk'!C48","v":0},{"$f":"'Overzicht inhuurdesk'!D48","v":0},{"$f":"IF(B50>\" \",IF('Overzicht inhuurdesk'!I48=\"Ja\",\"Voorwaardelijke inschrijving\",IF('Overzicht inhuurdesk'!J48=\"JA\",\"Strijdigheden vastgesteld\",IF('Overzicht inhuurdesk'!K48=\"Ja\",\"Meer dan 1x aangeboden\",IF('Overzicht inhuurdesk'!G48=\"Nee\",\"Voldoet niet aan eisen  volgens opdrachtnemer\",\"OK\")))),\" \")","v":" "},null,null,{"$f":"IF('Overzicht inhuurdesk'!$B48<>\"\",'Overzicht inhuurdesk'!N48,\"\")","v":""},null,null,null,null,null,null,null,{"$f":"IF('Overzicht inhuurdesk'!$B48>\"\",SUM(I50:O50),\"\")","v":""}]
[38,{"$f":"'Overzicht inhuurdesk'!B49","v":0},{"$f":"'Overzicht inhuurdesk'!C49","v":0},{"$f":"'Overzicht inhuurdesk'!D49","v":0},{"$f":"IF(B51>\" \",IF('Overzicht inhuurdesk'!I49=\"Ja\",\"Voorwaardelijke inschrijving\",IF('Overzicht inhuurdesk'!J49=\"JA\",\"Strijdigheden vastgesteld\",IF('Overzicht inhuurdesk'!K49=\"Ja\",\"Meer dan 1x aangeboden\",IF('Overzicht inhuurdesk'!G49=\"Nee\",\"Voldoet niet aan eisen  volgens opdrachtnemer\",\"OK\")))),\" \")","v":" "},null,null,{"$f":"IF('Overzicht inhuurdesk'!$B49<>\"\",'Overzicht inhuurdesk'!N49,\"\")","v":""},null,null,null,null,null,null,null,{"$f":"IF('Overzicht inhuurdesk'!$B49>\"\",SUM(I51:O51),\"\")","v":""}]
[39,{"$f":"'Overzicht inhuurdesk'!B50","v":0},{"$f":"'Overzicht inhuurdesk'!C50","v":0},{"$f":"'Overzicht inhuurdesk'!D50","v":0},{"$f":"IF(B52>\" \",IF('Overzicht inhuurdesk'!I50=\"Ja\",\"Voorwaardelijke inschrijving\",IF('Overzicht inhuurdesk'!J50=\"JA\",\"Strijdigheden vastgesteld\",IF('Overzicht inhuurdesk'!K50=\"Ja\",\"Meer dan 1x aangeboden\",IF('Overzicht inhuurdesk'!G50=\"Nee\",\"Voldoet niet aan eisen  volgens opdrachtnemer\",\"OK\")))),\" \")","v":" "},null,null,{"$f":"IF('Overzicht inhuurdesk'!$B50<>\"\",'Overzicht inhuurdesk'!N50,\"\")","v":""},null,null,null,null,null,null,null,{"$f":"IF('Overzicht inhuurdesk'!$B50>\"\",SUM(I52:O52),\"\")","v":""}]
[40,{"$f":"'Overzicht inhuurdesk'!B51","v":0},{"$f":"'Overzicht inhuurdesk'!C51","v":0},{"$f":"'Overzicht inhuurdesk'!D51","v":0},{"$f":"IF(B53>\" \",IF('Overzicht inhuurdesk'!I51=\"Ja\",\"Voorwaardelijke inschrijving\",IF('Overzicht inhuurdesk'!J51=\"JA\",\"Strijdigheden vastgesteld\",IF('Overzicht inhuurdesk'!K51=\"Ja\",\"Meer dan 1x aangeboden\",IF('Overzicht inhuurdesk'!G51=\"Nee\",\"Voldoet niet aan eisen  volgens opdrachtnemer\",\"OK\")))),\" \")","v":" "},null,null,{"$f":"IF('Overzicht inhuurdesk'!$B51<>\"\",'Overzicht inhuurdesk'!N51,\"\")","v":""},null,null,null,null,null,null,null,{"$f":"IF('Overzicht inhuurdesk'!$B51>\"\",SUM(I53:O53),\"\")","v":""}]

{"sheet":"Rapportage Info","index":7,"n_rows":14,"n_cols":16,"rows_kept":14,"cut":false,"hidden":false,"merged":[[0,0,0,3],[2,0,2,4],[3,0,3,4],[3,5,3,6]]}
["Rapportagegegevens Inhuur Aanvraag ICT Professional",null,null,null,"Referentienummer",{"$f":"Inhuurformulier!D1","v":0}]
[]
["U kunt de ingevulde rubrieken overnemen (Kopiëren/Plakken) op uw rapportagewerkblad"]
["Voor vragen kunt u contact opnemen met de contractmanager bereikbaar via :",null,null,null,null,{"$f":"'Brongegevens dienst'!B20","v":"iuc-inhuur@iuc-noord.nl"}]
[]
["INFORMATIE VOOR RAPPORTAGE OPDRACHTNEMERS TABBLAD Aanvragen"]
[]
["Datum Aanvraag\n(dd-mm-jjjj)","Referentie(nummer) Aanvraag van Deelnemer","Ministerie","Deelnemer","Dienstonderdeel","Functienaam (roepnaam)","Salaris schaal Rijk","Functiegroep\n(Functie Gebouw Rijk)","Dominante kwaliteitenprofiel conform  Kwaliteitsraamwerk Informatievoorzieing (KWIV)","Max. tarief (Ja/Nee)","Doelgroep\nsocial return\ngevraagd\n(Ja/Nee/ Indifferent)\nsocial return","Type Aanvraag","Startdatum initiële inhuurtermijn\n(dd-mm-jjjj)","Einddatum initiële inhuurtermijn\n(dd-mm-jjjj)","Aantal uren initiële inhuurtermijn"]
[{"$f":"Inhuurformulier!C33","v":"2025-11-03T16:38:54.940"},{"$f":"Inhuurformulier!D1","v":0},{"$f":"Inhuurformulier!B17","v":"OCW"},{"$f":"Inhuurformulier!B18","v":"AWTI"},{"$f":"Inhuurformulier!B19","v":0},{"$f":"Inhuurformulier!B57","v":0},{"$f":"Inhuurformulier!B55","v":0},{"$f":"Inhuurformulier!B52","v":"Expert IV"},{"$f":"Inhuurformulier!B50","v":"1.1.3 APPLICATIEARCHITECTUUR"},{"$f":"IF(AND(Inhuurformulier!B6>0,Inhuurformulier!B6<226),\"Ja\",\"Nee\")","v":"Nee"},"Indifferent",{"$f":"Inhuurformulier!B5","v":0},{"$f":"Inhuurformulier!C111","v":"00:00:00"},{"$f":"Inhuurformulier!C112","v":"00:00:00"},{"$f":"Inhuurformulier!C120","v":0}]
[]
["INFORMATIE VOOR RAPPORTAGE OPDRACHTNEMERS TABBLAD NOK's"]
[]
["Referentienummer NOK van Deelnemer","Referentie(nummer) Aanvraag van Deelnemer","Soort minicompetitie","Ministerie","Deelnemer","Dienstonderdeel","Functienaam (roepnaam)","Salaris schaal Rijk","Functiegroep\n(Functie Gebouw Rijk)","Dominante kwaliteitenprofiel conform  Kwaliteitsraamwerk Informatievoorzieing (KWIV)",null,null,null,null,null,"Aantal uren initiële inhuurtermijn"]
[null,{"$f":"Inhuurformulier!D1","v":0},{"$f":"Inhuurformulier!B4","v":0},{"$f":"Inhuurformulier!B17","v":"OCW"},{"$f":"Inhuurformulier!B18","v":"AWTI"},{"$f":"Inhuurformulier!B19","v":0},{"$f":"Inhuurformulier!B57","v":0},{"$f":"Inhuurformulier!B55","v":0},{"$f":"Inhuurformulier!B52","v":"Expert IV"},{"$f":"Inhuurformulier!B50","v":"1.1.3 APPLICATIEARCHITECTUUR"},null,null,null,null,null,{"$f":"Inhuurformulier!C126","v":0}]

{"sheet":"Brongegevens dienst","index":8,"n_rows":46,"n_cols":26,"rows_kept":46,"cut":false,"hidden":true,"merged":[[22,0,34,1],[0,18,0,24],[10,0,10,1],[0,0,0,1],[0,2,0,4],[0,7,0,17],[1,0,1,1],[9,0,9,1],[1,19,1,23]]}
["Aanvraagopties",null,"ORGANISATIE",null,null,null,null,"FEESTDAGEN",null,null,null,null,null,null,null,null,null,null,"LEVERANCIERSINFORMATIE"]
["Bij meerdere geschikte kandidaten behoudt de dienst zich het recht voor om meerdere gunningen te doen.",null,"Ministerie  (niet wijzigen!)","Deelnemer (niet wijzigen!)","Dienstonderdeel\n(sorteer A-Z)","Emailadres","Standaard tekst","Jaar","1e Paasdag","2e Paasdag","Bevrijdingsdag","Hemelvaartsdag","Koningsdag","1e Pinksterdag","2e Pinksterdag","1e Kerstdag","2e Kertsdag","Nieuwjaar","Naam (niet wijzigen)","Worden niet gebruikt door dienst. \nWel laten staan.",null,null,null,null,"Email-adres","OCW (niet wijzigen!!)"]
[null,null,"OCW","AWTI","Zelf invullen","iuc-inhuur@iuc-noord.nl","De Adviesraad voor wetenschap, technologie en innovatie (AWTI) is de onafhankelijke adviesraad van de regering en het parlement op het terrein van wetenschap, technologie en innovatie. Met zijn strategische beleidsadviezen wil de AWTI bijdragen aan het versterken van de innovatieve, wetenschappelijke en technologische kracht van mensen, bedrijven en kennisinstellingen in Nederland.  En daarmee aan een toekomstbestendige Nederlandse economie en samenleving.",2016,{"$f":"FIXED((\"4/\"&H3)/7+MOD(MOD(H3,19)*19-7,30)*14%,0)*7-6","v":42456},{"$f":"I3+1","v":42457},42495,{"$f":"I3+39","v":42495},42487,{"$f":"I3+49","v":42505},{"$f":"I3+50","v":42506},{"$f":"DATE(H3,12,25)","v":42729},{"$f":"DATE(H3,12,26)","v":42730},{"$f":"DATE(H3,1,1)","v":42370},"Cegeka",null,null,null,null,null,"resources@cegeka.com","AWTI"]
[null,null,null,"Bestuursdepartement",null,"iuc-inhuur@iuc-noord.nl","OCW bestaat uit een bestuursdepartement en tien daarbuiten gepositioneerde dienstonderdelen Het bestuursdepartement ontwikkelt het beleid op de terreinen onderwijs, cultuur en wetenschap. ",2017,{"$f":"FIXED((\"4/\"&H4)/7+MOD(MOD(H4,19)*19-7,30)*14%,0)*7-6","v":42841},{"$f":"I4+1","v":42842},42860,{"$f":"I4+39","v":42880},42852,{"$f":"I4+49","v":42890},{"$f":"I4+50","v":42891},{"$f":"DATE(H4,12,25)","v":43094},{"$f":"DATE(H4,12,26)","v":43095},{"$f":"DATE(H4,1,1)","v":42736},"CIMSOLUTIONScombi",null,null,null,null,null,"OCW-overig@cimsolutions.nl","Bestuursdepartement"]
["Lijst 1","Lijst 2",null,"CvTE",null,"iuc-inhuur@iuc-noord.nl","Het College voor Toetsen en Examens (CvTE) is namens de overheid verantwoordelijk voor de kwaliteit en het niveau van de centrale examens en toetsen in Nederland. Het heeft verschillende examens en toetsen onder zijn hoede waaronder de centrale examens en de Staatsexamens in het voortgezet onderwijs, de centrale examens in het mbo, de Centrale Eindtoets in het po en de Staatsexamens Nederlands als tweede taal (Nt2). Voor verdere informatie zie www.cvte.nl",2018,43191,43192,null,43230,43217,43240,43241,43459,43460,43101,"Hero",null,null,null,null,null,"ocw.aanvragen@hero.eu","CvTE"]
["Ja","Ja",null,"DUO",null,"iuc-inhuur@iuc-noord.nl","'DUO verzorgt als uitvoeringsorganisatie, zijnde onderdeel van het Ministerie van Onderwijs, Cultuur en Wetenschap de uitvoering van complexe wet- en regelgeving en heeft een uitgebreid dienstenpakket. DUO financiert en informeert onderwijsdeelnemers en onderwijsinstellingen. Voor verdere informatie zie www.duo.nl",2019,43576,43577,43590,43615,null,43625,43626,43824,43825,43466,"Need Staffing",null,null,null,null,null,"resourcemanagement@needstaffing.nl","DUO"]
["Nee","Nee",null,"Inspectie Overheidsinformatie en Erfgoed",null,"iuc-inhuur@iuc-noord.nl","De Inspectie Overheidsinformatie en Erfgoed (voorheen Erfgoedinspectie) houdt toezicht op een deel van het Nederlandse erfgoed en op het informatiebeheer bij de Rijksoverheid. Ook levert de inspectie een belangrijke bijdrage aan het tegengaan van illegale handel in cultuurgoederen. De Inspectie draagt zo bij aan het behoud en beheer van het nationale erfgoed.",2020,43933,43934,43956,43972,43948,43982,43983,44190,44191,43831,"Seven Stars",null,null,null,null,null,"OCW@sevenstars.nl ","Inspectie Overheidsinformatie en Erfgoed"]
[null,"Indifferent",null,"IvhO",null,"iuc-inhuur@iuc-noord.nl","De Inspectie van het Onderwijs bekijkt jaarlijks of er aanwijzingen zijn dat scholen onvoldoende kwaliteit leveren. Op basis van een risicoanalyse en eventueel extra onderzoek wordt dan gekeken of een school extra toezicht nodig heeft. Daarnaast houdt de inspectie de (financiële) gezondheid van besturen in de gaten en houdt ze toezicht op het (accreditatie)stelsel van hoger onderwijs. Voor verdere informatie zie www.onderwijsinspectie.nl",2021,44290,44291,44321,44329,44313,44339,44340,44555,44556,44197,"Sopra Steria",null,null,null,null,null,"ocw.nl@soprasteria.com","IvhO"]
["Stamlocatie ICT Inhuur Documenten",null,null,"NA",null,"iuc-inhuur@iuc-noord.nl","Het Nationaal Archief beheert en presenteert bijna duizend jaar geschiedenis van Nederland. 137 kilometer archieven, 15 miljoen foto's, 300.000 kaarten en tekeningen, en 440 terabyte aan digitale bestanden vormen het geheugen van Nederland. Voor verdere informatie zie www.nationaalarchief.nl",2022,44668,44669,44686,44707,44678,44717,44718,44920,44921,44562,null,null,null,null,null,null,null,"NA"]
["K:\\5 Inkooptrajecten\\5.7 Inhuur\\ICT\\",null,null,"Nederlandse Unesco Commissie",null,"iuc-inhuur@iuc-noord.nl",null,2023,45025,45026,45051,45064,45043,45074,45075,45285,45286,44927,null,null,null,null,null,null,null,"Nederlandse Unesco Commissie"]
[null,null,null,"Onderwijsraad",null,"iuc-inhuur@iuc-noord.nl","De Onderwijsraad is een onafhankelijk adviescollege, opgericht in 1919. De raad adviseert de regering en de Kamer, gevraagd en ongevraagd, over hoofdlijnen van beleid en wetgeving op het gebied van het onderwijs.",2024,45382,45383,null,45421,null,45431,45432,45651,45652,45292,null,null,null,null,null,null,null,"Onderwijsraad"]
["Versienummer formulier","1.1",null,"RCE",null,"iuc-inhuur@iuc-noord.nl","De Rijksdienst voor het Cultureel Erfgoed is het kennisinstituut voor roerend en onroerend erfgoed. Deze kennis zet de Rijksdienst in om met wetten en regels het erfgoed te beschermen en te ontwikkelen. Samen met anderen is de Rijksdienst voor Cultureel Erfgoed verantwoordelijk voor de zorg van het Nederlands erfgoed boven en onder de grond en onder water. Voor verdere informatie zie www.cultureelerfgoed.nl",2025,45767,45768,45782,45806,null,45816,45817,46016,46017,45658,null,null,null,null,null,null,null,"RCE"]
["Status Aanvraag","Status Kandidaat",null,"RVC",null,"iuc-inhuur@iuc-noord.nl","De Raad voor Cultuur is het wettelijke adviesorgaan van de regering en het parlement op het terrein van kunst, cultuur en media. De raad is onafhankelijk en adviseert, gevraagd en ongevraagd, over actuele beleidskwesties en subsidieaanvragen.",2026,46117,46118,46147,46156,46139,46166,46167,46381,46382,46023,null,null,null,null,null,null,null,"RVC"]
["Open","Open",null,null,null,null,null,2027,46474,46475,46512,46513,46504,46523,46524,46746,46747,46388]
["Beoordelen","Beoordelen",null,null,null,null,null,2028,46859,46860,46878,46898,46870,46908,46909,47112,47113,46753]
["Gunnen","Gesprek",null,null,null,null,null,2029,47209,47210,null,47248,47235,47258,47259,47477,47478,47119]
["Geen gunning","Afgewezen",null,null,null,null,null,2030,47594,47595,null,{"$f":"I17+39","v":47633},null,{"$f":"I17+49","v":47643},{"$f":"I17+50","v":47644},{"$f":"DATE(H17,12,25)","v":47842},{"$f":"DATE(H17,12,26)","v":47843},{"$f":"DATE(H17,1,1)","v":47484}]
[null,null,null,null,null,null,null,2031,47951,47952,47973,{"$f":"I18+39","v":47990},null,{"$f":"I18+49","v":48000},{"$f":"I18+50","v":48001},{"$f":"DATE(H18,12,25)","v":48207},{"$f":"DATE(H18,12,26)","v":48208},{"$f":"DATE(H18,1,1)","v":47849}]
["Contractmanager",null,null,null,null,null,null,2032,48301,48302,48339,48340,48331,48350,48351,48573,48574,48214]
["Emailadres","iuc-inhuur@iuc-noord.nl",null,null,null,null,null,2033,48686,48687,48704,48725,48696,48735,48736,48938,48939,48580]
["Telefoonnummer",null,null,null,null,null,null,2034,49043,49044,49069,49082,12536,49092,49093,49303,49304,48945]
["Standaard tekst dienst",null,null,null,null,null,null,2035,49393,49394,null,49432,null,49442,49443,49668,49669,49310]
[null,null,null,null,null,null,null,2036,49778,49779,49800,49817,null,49827,49828,50034,50035,49675]
[null,null,null,null,null,null,null,2037,50135,50136,50165,50174,50157,50184,50185,50399,50400,50041]
[null,null,null,null,null,null,null,2038,50520,50521,50530,50559,50522,50569,50570,50764,50765,50406]
[null,null,null,null,null,null,null,2039,50870,50871,50895,50909,50887,50919,50920,51129,51130,50771]
[]
[]
[]
[]
[]
[]
[]
[]
[]
["Soort","Soort minicompetitie"]
["Regulier","Met leiding en toezicht"]
["Proactief","Zonder leiding en toezicht"]
["Strippenkaart"]
["Vrijblijvend"]
["Verambtelijking"]
["Cluster"]
["Standplaats","Postcode"]
["Den Haag"]
["Utrecht"]
["Amersfoort"]